Cogmind - Beta 16 @@@ ROGUE MODE // 2025.10.26 @ 12:52:34 // Winter2019/RPGLIKE Player: Gallgagger Result: Destroyed by P-80 Master with Gamma Rifle Performance ------------- Evolutions (9) 4500 Regions Visited (26) 5200 Robots Destroyed (1929) 9645 Value Destroyed (109335) 109335 Prototype IDs (76) 1520 Alien Tech Used (2) 400 Bonus (109196) 109196 TOTAL SCORE: 239796 Bonus ------- Triggered High Security 5000 Triggered Max Security 1000 High Alert Combat Kills 83093 Follower Combat Kills 1103 Destroyed Unchained 2000 Network Hubs Disabled 600 Aligned with FarCom 300 Met Zhirov 300 Built Enhanced Grunts 300 Met R17 at Cetus 500 Met R17 at Research 2000 Scanned by Researcher 500 Met Sigix 2000 Destroyed MAIN.C Guards 500 Met MAIN.C 5000 Destroyed MAIN.C Shell 5000 Cogmind --------- Core Integrity 0/1450 Matter 64/300 Energy 419/420 System Corruption 30% Temperature Cool (31) Movement Flying (42) Location -1/Command Parts ------- > --- POWER (2) -------- Light Antimatter Reactor Quantum Reactor > --- PROPULSION (5) --- Flying Fortress v7 (fused) Q-thruster > --- UTILITY (11) ----- Armored Scrap Engine Gravity Neutralizer Experimental Sensor Array Advanced Kinecellerator Advanced Weapon Cycler Centrium Light Armor Plating Experimental Thermal Shield Advanced Hardlight Generator > --- WEAPON (4) ------- Hvy. Impact Piercelight Construct/C Molecular Scythe > --- INVENTORY (5) ---- Subatomic Replicator Sigix Containment Pod Peak State ------------ > --- POWER ------------ Light Antimatter Reactor Quantum Reactor > --- PROPULSION ------- Flying Fortress v7 Q-thruster > --- UTILITY ---------- Armored Scrap Engine Gravity Neutralizer Experimental Sensor Array Experimental Signal Interpreter Experimental Core Analyzer Advanced Kinecellerator Advanced Weapon Cycler Centrium Light Armor Plating Experimental Thermal Shield Advanced Hardlight Generator > --- WEAPON ----------- Hvy. Impact Piercelight Construct/C Molecular Scythe > --- INVENTORY -------- Protomatter Protomatter Subatomic Replicator Sigix Containment Pod [Rating: 184] Favorites ----------- Power Light Nuclear Core Engine Light Ion Engine Power Core Light Nuclear Core Reactor Fusion Reactor Propulsion Flying Fortress v7 Wheel Wheel Flight Unit Flying Fortress v7 Utility Experimental Sensor Array Device Experimental Sensor Array Processor Advanced Signal Interpreter Hackware Experimental Hacking Suite Protection Centrium Medium Armor Plating Weapon Constructs Energy Gun Medium Laser Energy Cannon Guided Plasma Cannon Ballistic Gun Gauss Rifle Ballistic Cannon Constructs Launcher Guided EMP Blaster Slashing Weapon Molecular Scythe Piercing Weapon Lance Build | -11 -10 -10 -9 -9 -9 -8 -8 -8 -8 -6 -6 -6 -6 -6 -5 -5 -5 -5 -4 -4 -4 -3 -3 -2 -1 -1 ------- Run | Yrd Mat Min Mat Min Exi Min Mat Sto Rec Fac Ext Cet Arc Hub Fac Upp Upp Zhi Pro Fac Arm Res Qua Res Acc Com Slots Evolved 18 | 4 3 2 3 . . . 1 . . 2 1 . . . . . . . . 1 . . 1 . . . Power 1 | 1 . . . . . . . . . . . . . . . . . . . . . . . . . . Propulsion 4 | 1 2 . . . . . . . . 1 . . . . . . . . . . . . . . . . Utility 10 | 1 . 1 3 . . . 1 . . 1 1 . . . . . . . . 1 . . 1 . . . Weapon 3 | 1 1 1 . . . . . . . . . . . . . . . . . . . . . . . . Parts Attached 135 | 8 9 1 17 1 9 1 5 4 2 15 . 4 . 8 5 . . 1 . 11 . 2 2 18 5 7 Power 9 | 2 . . 1 . 1 . . . . 1 . . . . . . . . . . . 1 2 1 . . Engine 2 | 2 . . . . . . . . . . . . . . . . . . . . . . . . . . Core 2 | . . . 1 . 1 . . . . . . . . . . . . . . . . . . . . . Reactor 5 | . . . . . . . . . . 1 . . . . . . . . . . . 1 2 1 . . Propulsion 16 | 2 4 . 4 . 1 . . . . 2 . . . . . . . . . 2 . 1 . . . . Treads . | . . . . . . . . . . . . . . . . . . . . . . . . . . . Leg . | . . . . . . . . . . . . . . . . . . . . . . . . . . . Wheel 2 | 2 . . . . . . . . . . . . . . . . . . . . . . . . . . Hover . | . . . . . . . . . . . . . . . . . . . . . . . . . . . Flight 14 | . 4 . 4 . 1 . . . . 2 . . . . . . . . . 2 . 1 . . . . Utility 73 | 1 2 1 5 1 2 1 5 1 2 6 . 3 . 6 4 . . 1 . 6 . . . 14 5 7 Device 47 | 1 2 1 . . 1 1 2 . 1 5 . 2 . 5 4 . . 1 . 2 . . . 9 3 7 Storage . | . . . . . . . . . . . . . . . . . . . . . . . . . . . Processor 13 | . . . 2 . . . 1 . 1 1 . . . 1 . . . . . 4 . . . 3 . . Hackware 2 | . . . . . . . . . . . . . . . . . . . . . . . . 2 . . Protection 11 | . . . 3 1 1 . 2 1 . . . 1 . . . . . . . . . . . . 2 . Artifact . | . . . . . . . . . . . . . . . . . . . . . . . . . . . Weapon 37 | 3 3 . 7 . 5 . . 3 . 6 . 1 . 2 1 . . . . 3 . . . 3 . . Energy Gun 8 | 2 1 . . . . . . . . 2 . 1 . . . . . . . . . . . 2 . . Energy Cannon 3 | . . . . . 1 . . . . 1 . . . 1 . . . . . . . . . . . . Ballistic Gun 20 | 1 2 . 7 . 4 . . 3 . 1 . . . 1 . . . . . . . . . 1 . . Ballistic Cannon . | . . . . . . . . . . . . . . . . . . . . . . . . . . . Launcher 1 | . . . . . . . . . . 1 . . . . . . . . . . . . . . . . Special Weapon . | . . . . . . . . . . . . . . . . . . . . . . . . . . . Impact Weapon . | . . . . . . . . . . . . . . . . . . . . . . . . . . . Slashing Weapon 3 | . . . . . . . . . . 1 . . . . . . . . . 2 . . . . . . Piercing Weapon 2 | . . . . . . . . . . . . . . . 1 . . . . 1 . . . . . . Special Melee Weapon . | . . . . . . . . . . . . . . . . . . . . . . . . . . . Unidentified Prototypes 41 | . . . 1 . 1 . . 1 1 8 . 3 . 5 2 . . 3 . 4 . . . 8 1 3 Parts Lost 3 | . . . . . 1 . . . . . . . . . . . . . . . . . . . 1 1 Power . | . . . . . . . . . . . . . . . . . . . . . . . . . . . Propulsion . | . . . . . . . . . . . . . . . . . . . . . . . . . . . Utility 3 | . . . . . 1 . . . . . . . . . . . . . . . . . . . 1 1 Weapon . | . . . . . . . . . . . . . . . . . . . . . . . . . . . Highest Loss Streak 1 | . . . . . 1 . . . . . . . . . . . . . . . . . . . 1 1 To Critical Strikes . | . . . . . . . . . . . . . . . . . . . . . . . . . . . Average Backups 1 | . . . . 1 1 . . 1 . 1 1 2 1 2 2 2 2 2 2 2 2 2 1 2 1 1 Power . | . . . . . . . . . . . . . . . . . . . . . . . . . . . Propulsion . | . . . . . . . . . . . . . . . . . . . . . . . . . . . Utility . | . . . . 1 1 . . . . . 1 1 1 1 1 1 1 1 1 1 1 1 . . . . Weapon . | . . . . . . . . . . . . 1 . . 1 1 1 1 1 1 1 1 1 1 . . Tool/Special . | . . . . . . . . . . . . . . . . . . . . . . . . . . . Unused Backups 14 | . . . . . . . . . 2 9 1 . 1 . . . . . . . . . . . . 1 Power . | . . . . . . . . . . . . . . . . . . . . . . . . . . . Propulsion . | . . . . . . . . . . . . . . . . . . . . . . . . . . . Utility . | . . . . . . . . . . . . . . . . . . . . . . . . . . . Weapon 13 | . . . . . . . . . 2 9 1 . 1 . . . . . . . . . . . . . Tool/Special 1 | . . . . . . . . . . . . . . . . . . . . . . . . . . 1 Average Slot Usage (%) 73 | . 98 96 98 100 79 81 81 82 65 63 65 65 70 70 70 70 70 69 70 68 71 71 71 71 68 71 Engine 1 | . 22 16 6 6 4 . . . . . . . . . . . . . . . . . . . . . Core 5 | . . . 6 6 7 12 11 11 11 9 5 5 5 5 5 5 5 5 5 4 4 3 1 . . . Reactor 3 | . . . . . . . . . . 1 5 5 5 5 5 5 5 5 5 4 4 4 7 8 9 9 Flight 10 | . 29 33 27 25 6 6 5 5 5 10 10 10 10 10 10 10 10 10 10 9 9 9 9 9 9 9 Device 25 | . 21 20 19 6 11 13 17 17 16 21 25 25 30 30 30 30 30 29 30 28 28 28 30 30 27 35 Processor 6 | . . . 3 12 6 6 10 8 5 5 5 5 5 5 5 5 5 5 5 6 9 9 9 8 8 3 Protection 6 | . . . 6 18 15 16 11 13 12 7 5 5 5 5 5 5 5 5 5 3 4 4 3 3 4 4 Energy Cannon 2 | . . . . . 4 . . . . 2 2 1 2 4 5 5 5 5 5 4 4 4 4 3 . . Ballistic Gun 5 | . 11 25 26 25 19 25 23 23 9 . . . . . . . . . . . . . . . . . Slashing Weapon 2 | . . . . . . . . . . 1 5 5 5 5 4 5 5 5 5 4 4 4 4 3 4 3 Peak Build Rating 184 | 7 16 17 38 39 76 76 81 82 94 111 111 130 138 147 142 138 138 140 139 160 160 165 173 180 184 184 Average Rating 119 | 5 12 16 31 38 69 74 78 81 81 100 110 113 134 137 137 138 138 138 139 149 159 160 170 176 173 177 On Entrance 104 | . 7 16 17 38 39 74 76 81 82 83 111 111 130 138 137 138 138 138 139 139 160 160 161 173 172 173 Avg Prop Armor Cover (%) . | . . . . . . . . . . . . . . . . . . . . . . . . . . . Naked Turns . | . . . . . . . . . . . . . . . . . . . . . . . . . . . Heaviest Build 86 | 10 18 11 31 31 43 43 49 49 47 52 52 58 63 64 63 63 63 63 61 65 65 72 72 82 82 86 Greatest Support 90 | 20 22 22 31 31 61 61 64 64 55 66 65 65 65 65 65 65 65 65 65 79 67 68 80 80 85 90 Greatest Overweight (x) 2 | . 2 . . . . . . . . . . . . . . . . . . 1 . 1 . 1 . 2 Average Overweight (x) . | . . . . . . . . . . . . . . . . . . . . . . . . . . . Largest Inventory Capacity 5 | 1 1 1 1 2 2 2 2 2 2 3 3 3 3 3 3 3 3 3 3 3 3 3 4 5 5 5 Average Capacity 2 | 1 1 1 1 1 2 2 2 2 2 2 3 3 3 3 3 3 3 3 3 3 3 3 3 4 5 5 Most Carried 5 | . 1 . 1 2 2 1 2 2 2 3 3 2 2 3 3 3 3 3 3 3 3 3 4 5 5 5 Average Carried 2 | . . . . 1 1 1 1 1 1 2 1 2 1 2 2 3 3 3 3 2 3 3 3 4 4 4 Final Capacity 5 | 1 1 1 1 2 2 2 2 2 2 3 3 3 3 3 3 3 3 3 3 3 3 3 4 5 5 5 Final Carried 4 | . . . 1 2 1 1 2 2 1 3 3 2 1 3 3 3 3 3 3 3 3 3 4 3 4 3 Scrap Engine Consumption 71 | . . . . . . . . . 18 37 6 4 2 2 . . . . . . . . . 2 . . Constructs Created 1 | . . . . . . . . . 1 . . . . . . . . . . . . . . . . . Constructs Modified 32 | . . . . . . . . . 6 18 3 1 1 2 . . . . . . . . . 1 . . Class Distribution -------------------- 56% | Scavenger-Scout 23% | Scout 8% | Sprinter 4% | Scavenger-Gunner Dominant Class ---------------- Sprinter | -10/Materials Sprinter | -10/Mines Sprinter | -9/Materials Sprinter | -9/Mines Scavenger-Tank | -9/Exiles Scavenger-Scout | -8/Mines Scavenger-Scout | -8/Materials Scavenger-Scout | -8/Storage Scout | -8/Recycling Scout | -6/Factory Scout | -6/Extension Scout | -6/Cetus Scavenger-Scout | -6/Archives Scavenger-Scout | -6/Hub_04(d) Scavenger-Scout | -5/Factory Scavenger-Gunner | -5/Upper Caves Scavenger-Gunner | -5/Upper Caves Scavenger-Gunner | -5/Zhirov Scavenger-Gunner | -4/Proximity Caves Scavenger-Scout | -4/Factory Scavenger-Scout | -4/Armory Scavenger-Scout | -3/Research Scavenger-Scout | -3/Quarantine Scavenger-Scout | -2/Research Scavenger-Scout | -1/Access Scavenger-Scout | -1/Command Resources | -11 -10 -10 -9 -9 -9 -8 -8 -8 -8 -6 -6 -6 -6 -6 -5 -5 -5 -5 -4 -4 -4 -3 -3 -2 -1 -1 ----------- Run | Yrd Mat Min Mat Min Exi Min Mat Sto Rec Fac Ext Cet Arc Hub Fac Upp Upp Zhi Pro Fac Arm Res Qua Res Acc Com Matter Collected 32450 | 196 307 31 1058 86 1022 192 1431 2007 556 2757 294 73 . 1333 2989 346 252 . 321 2701 1255 704 2545 3417 2379 4198 Remotely 1059 | . . 31 1028 . . . . . . . . . . . . . . . . . . . . . . . Salvage Created 95015 | 37 951 . 2151 151 2152 216 2177 4143 1319 6497 2963 211 81 3317 7713 977 1084 . 586 8391 4533 2889 9182 10191 10548 12555 Parts 3669 | 5 67 6 128 10 126 28 168 208 68 220 103 8 3 170 414 44 42 . 40 364 159 128 281 412 241 226 Haulers Intercepted 27 | . 1 . 5 . . . 4 6 . 4 2 . . 1 1 . . . . 2 . . . . 1 . Recyclers Shooed 7 | . . . . . . . . . 4 2 1 . . . . . . . . . . . . . . . Parts Field Recycled . | . . . . . . . . . . . . . . . . . . . . . . . . . . . Retrieved Matter . | . . . . . . . . . . . . . . . . . . . . . . . . . . . Parts Self-Destructed 124 | . . . . . . . . . . . . . . . . 44 40 . 40 . . . . . . . Prevented . | . . . . . . . . . . . . . . . . . . . . . . . . . . . Parts Restored . | . . . . . . . . . . . . . . . . . . . . . . . . . . . Kills | -11 -10 -10 -9 -9 -9 -8 -8 -8 -8 -6 -6 -6 -6 -6 -5 -5 -5 -5 -4 -4 -4 -3 -3 -2 -1 -1 ------- Run | Yrd Mat Min Mat Min Exi Min Mat Sto Rec Fac Ext Cet Arc Hub Fac Upp Upp Zhi Pro Fac Arm Res Qua Res Acc Com Combat Hostiles Destroyed 1672 | . 39 3 45 3 56 15 53 63 11 125 65 2 2 56 162 20 18 . 14 142 84 48 158 155 159 174 Melee 7 | . . . . . . . . . . 2 . . . . . . . . . . 1 . 1 1 2 . Guns 276 | . 39 3 45 3 42 15 53 63 9 4 . . . . . . . . . . . . . . . . Cannons 1113 | . . . . . 14 . . . 2 98 64 2 2 52 151 19 18 . 14 136 76 44 150 143 57 71 AOE 5 | . . . . . . . . . . 3 . . . . 1 . . . . . . . . . 1 . Classes Destroyed 33 | 1 3 . 3 . 3 . 7 1 2 2 . . . 1 1 1 1 . . 1 . . 3 3 . . Worker 19 | . . . . . . . 2 5 . . . . . 3 3 . . . . 3 . 1 . . . 2 Builder 14 | . . . . . . . 2 2 . 1 . . . 2 1 . . . . 1 . . . . 5 . Tunneler 6 | 2 . . . . . 1 . . . 1 . . . . 1 . . . . . . . . . 1 . Hauler 27 | . 1 . 5 . . . 4 6 . 4 2 . . 1 1 . . . . 2 . . . . 1 . Recycler 26 | . . . . . . . 1 8 7 3 1 . . . 1 . . . . 1 . . . . 2 2 Carrier 22 | . . . . . . . . . . . . . . 3 3 . 1 . . 1 4 1 5 1 1 2 Mechanic 27 | . . . . . . . 1 3 . 1 . . . 1 5 . . . . . 2 . 8 . . 6 Operator 18 | . . . . . . . 1 2 . 3 . . . 3 2 . . . . 1 1 . 1 3 . 1 Drone 1 | . . . . . . . . . . . . . . . . . . . . . . . . 1 . . Turret 40 | . . . . . . . . . . . . . . . . . . . . . . . . 40 . . Watcher 65 | . . . 3 . . . 5 2 . 4 3 2 . 4 6 . . . . 10 2 3 3 7 4 7 Swarmer 124 | . 9 3 3 . . 15 18 . . 7 3 . . . 13 3 1 . 4 5 9 . . 15 8 8 Cutter 10 | . . . . . . . 2 . . 3 . . . 1 . . . . . 3 . . . . . 1 Saboteur 61 | . . . . . . . . . . 7 2 . . . 1 . . . . 3 5 3 10 11 8 11 Grunt 650 | . 30 . 31 2 29 . 20 43 2 50 27 . . 21 63 9 7 . 4 51 18 17 73 44 49 60 Brawler 94 | . . . . . 4 . . 2 . 7 2 . . 2 14 1 3 . . 4 9 . 16 7 10 13 Duelist 88 | . . . 1 . 2 . . 1 . 7 2 . . 1 9 . . . . 6 6 4 19 13 9 8 Protector 65 | . . . . . . . . 3 1 7 1 . . 4 14 . . . . 7 2 3 7 3 5 8 Sentry 143 | . . . 10 1 . . 11 11 6 4 12 . 2 8 9 1 1 . . 12 8 13 . 15 14 5 Demolisher 5 | . . . . . . . . . . . . . . . 2 . . . . 2 1 . . . . . Specialist 7 | . . . . . . . . . . . . . . . . 3 . . . 2 2 . . . . . Hunter 146 | . . . . . 12 . 1 3 . 13 10 . . 4 22 2 4 . 4 18 12 2 10 7 18 4 Programmer 173 | . . . . . 9 . . . 2 16 3 . . 2 14 1 . . 1 21 11 5 13 29 20 26 Heavy 16 | . . . . . . . 1 . . 3 . . . 2 1 . . . . 6 1 . . 1 1 . Q-Series 2 | . . . . . . . . . . . . . . . . . . . . . . . . 2 . . Behemoth 13 | . . . . . . . . . . 1 2 . . 1 . . 1 . 1 . . 1 . 2 3 1 Cetus Guard 2 | . . . . . . . . . . . . 2 . . . . . . . . . . . . . . M Guard 2 | . . . . . . . . . . . . . . . . . . . . . . . . . . 2 Enhanced Grunt 1 | . . . . . . . . . . . . . . 1 . . . . . . . . . . . . Lightning 12 | . . . . . . . . . . . . . . 9 . . . . . . . . 3 . . . Combat Programmer 2 | . . . . . . . . . . . . . . . . . . . . . . . . . . 2 Investigator 6 | . . . . . . . . . . . . . . . . . . . . . . . 2 1 1 2 Striker 23 | . . . . . . . . . . . . . . . . . . . . . . . 3 4 6 10 Executioner 25 | . . . . . . . . . . . . . . . . . . . . 1 . . 3 1 8 12 Fortress 1 | . . . . . . . . . . . . . . . . . . . . . . . 1 . . . Scientist 2 | . . . . . . . . . 2 . . . . . . . . . . . . . . . . . Scrapper 3 | . . . . . . . . . 3 . . . . . . . . . . . . . . . . . Butcher 1 | . . . . . . . . . . . 1 . . . . . . . . . . . . . . . Wizard 2 | . . . . . . . . . . . . . . . . . . . . . . . . . . 2 Mutant 1 | . . . . . . . . . . . . . . . . . 1 . . . . . . . . . Best Kill Streak 76 | 2 6 3 7 2 20 4 21 19 6 27 27 2 2 11 29 6 11 . 6 31 39 14 49 76 35 55 Combat Bots Only 76 | . 6 3 5 2 20 4 17 9 4 27 27 2 2 9 28 6 10 . 6 30 27 14 47 76 26 49 Max Kills in Single Turn 5 | 1 2 1 2 1 2 4 3 2 1 3 2 1 1 2 5 1 1 . 1 1 1 1 1 1 2 2 Gunslinging 3 | . 1 . 1 . 1 3 2 1 . . . . . . . . . . . . . . . . . . Exploded 3 | . . . . . . . . . . 3 . . . . 1 . . . . . . . . . 1 . Melee 1 | . . . . . . . . . . 1 . . . . . . . . . . 1 . 1 1 1 . Uniques/NPCs Destroyed 3 | . . . . . . . . . . . . . . 1 . . . . . 1 . . . . . 1 DW-4LL (-6/Hub_04(d)) 6S-H0T (-4/Factory) MAIN.C Shell (-1/Command) Combat | -11 -10 -10 -9 -9 -9 -8 -8 -8 -8 -6 -6 -6 -6 -6 -5 -5 -5 -5 -4 -4 -4 -3 -3 -2 -1 -1 -------- Run | Yrd Mat Min Mat Min Exi Min Mat Sto Rec Fac Ext Cet Arc Hub Fac Upp Upp Zhi Pro Fac Arm Res Qua Res Acc Com Hostile Shots Fired 4977 | . 153 14 87 10 101 22 93 98 16 518 376 20 5 242 333 35 39 . 64 372 288 56 428 672 468 467 Missed 2193 | . 49 4 36 5 33 10 36 38 6 228 148 6 1 99 150 20 19 . 31 167 142 22 194 313 243 193 Hits 2784 | . 104 10 51 5 68 12 57 60 10 290 228 14 4 143 183 15 20 . 33 205 146 34 234 359 225 274 Melee 58 | . . . 1 . . . 1 . . 6 3 . . . . . . . . 1 1 . 16 25 3 1 Projectile 2726 | . 104 10 50 5 68 12 56 60 10 284 225 14 4 143 183 15 20 . 33 204 145 34 218 334 222 273 AOE 36 | . . 2 . . . . 1 . 1 2 . . . . 5 . . . . 3 1 1 2 7 . 11 Critical Strikes 139 | . . . . . 2 . 1 2 1 16 3 2 . 6 8 2 1 . . 31 2 1 22 17 9 13 Part Disruptions 11 | . . . . . . . . . . . . . . 2 . . . . . 1 . . . . 1 7 Damage Taken 34069 | . 1122 149 770 80 971 100 946 615 202 3200 1429 168 84 2380 1853 118 208 . 221 2299 1299 516 2321 4432 2499 6087 Core 24957 | . 898 123 560 46 654 61 673 411 157 2318 1056 124 56 1770 1324 71 147 . 157 1702 955 323 1715 3230 1831 4595 Absorbed by Shields 14203 | . . . . . . . 60 240 32 1278 1200 111 36 542 996 84 114 . 162 1170 930 280 1807 2657 1192 1312 Redirected to Core 22501 | . 701 91 538 32 627 53 580 341 128 2045 888 124 56 1701 1175 71 147 . 137 1526 818 287 1514 3013 1651 4257 Redirected to Shielding 66 | . . . . . . . . . . . . . . . . . . . . . . . . . 66 . Ignored by Resistances 11167 | . . . . . . . 56 117 32 1077 720 76 39 418 874 70 112 . 130 1047 699 252 1122 2035 866 1425 Regen/Repaired (Parts) 140 | . . . . . . . . . . 5 79 46 . . . . . . . 10 . . . . . . Core Remaining (%) 74 | 100 . 79 . . . 100 . . 100 . . . . 28 . . . . 100 . 44 . 100 19 . . Volleys Fired 4378 | 6 127 7 91 4 139 10 86 122 50 446 251 24 12 176 393 46 36 . 31 348 173 92 348 445 333 582 Largest 4 | 2 3 3 4 4 3 4 4 4 4 1 1 1 1 1 1 1 1 . 1 1 1 1 1 2 1 1 Hottest 309 | 70 110 60 92 92 120 112 112 112 103 52 85 69 69 103 103 103 103 . 103 309 103 103 103 133 133 133 Shots Fired 5637 | 12 275 21 336 16 295 40 344 483 112 443 246 23 11 174 388 46 36 . 31 348 173 92 347 451 332 562 Gun 1880 | 12 275 21 336 16 237 40 344 483 86 19 . . . . . . . . . . . . . 11 . . Cannon 3757 | . . . . . 58 . . . 26 424 246 23 11 174 388 46 36 . 31 348 173 92 347 440 332 562 Launcher . | . . . . . . . . . . . . . . . . . . . . . . . . . . . Special . | . . . . . . . . . . . . . . . . . . . . . . . . . . . Kinetic 2022 | 6 127 21 336 16 237 40 344 483 110 112 170 20 . . . . . . . . . . . . . . Thermal 2718 | 6 148 . . . 58 . . . 2 331 76 3 11 174 388 46 36 . 31 348 173 92 347 448 . . Explosive . | . . . . . . . . . . . . . . . . . . . . . . . . . . . Electromagnetic . | . . . . . . . . . . . . . . . . . . . . . . . . . . . Impact 897 | . . . . . . . . . . . . . . . . . . . . . . . . 3 332 562 Robot Hit Streak 73 | 4 30 3 32 16 35 15 42 42 46 58 56 21 32 45 46 27 18 . 11 73 42 38 44 58 56 51 Robot Miss Streak 5 | 1 3 2 5 1 3 3 2 4 1 3 2 1 . 2 1 2 1 . 1 2 2 1 2 2 2 2 Penetration Max 3 | . . . . . . 1 1 1 . 1 3 1 . . . . . . . . . . . 1 . . Secondary Targets 47 | . 5 . 6 2 9 6 11 7 1 . . . . . . . . . . . . . . . . . Max Gunslinging Chain 3 | . 1 . 1 1 1 3 3 2 1 . . . . . . . . . . . . . . . . . Shots Hit Robots 4537 | 8 197 12 224 15 184 20 227 348 89 424 232 21 11 135 312 37 30 . 28 293 149 87 314 357 294 489 Core Hits 2021 | 3 75 6 87 5 82 16 101 167 43 403 107 10 4 70 142 13 16 . 8 130 75 39 156 164 38 61 Critical Kills 74 | . . . 5 1 3 . 3 4 1 . . . . 4 11 1 . . . 7 10 5 8 11 . . Critical Parts Destroyed 15 | . 2 . 3 . 1 . 3 5 . . . . 1 . . . . . . . . . . . . . Critical Strikes 115 | 1 15 . 8 1 4 . 6 10 1 11 . . 1 4 11 1 . . . 7 10 5 8 11 . . Burn 22 | 1 13 . . . . . . . . 8 . . . . . . . . . . . . . . . . Meltdown 57 | . . . . . . . . . . . . . . 4 11 1 . . . 7 10 5 8 11 . . Destroy 33 | . 2 . 8 1 4 . 6 10 1 . . . 1 . . . . . . . . . . . . . Blast 3 | . . . . . . . . . . 3 . . . . . . . . . . . . . . . . Melee Attacks 13 | . . . . . . . . . . 11 . . . . . . . . . 1 . . . 1 . . Impact . | . . . . . . . . . . . . . . . . . . . . . . . . . . . Slashing 13 | . . . . . . . . . . 11 . . . . . . . . . 1 . . . 1 . . Piercing . | . . . . . . . . . . . . . . . . . . . . . . . . . . . Sneak Attacks 1 | . . . . . . . . . . . . . . . . . . . . 1 . . . . . . Combat Hostiles . | . . . . . . . . . . . . . . . . . . . . . . . . . . . Follow-up Attacks . | . . . . . . . . . . . . . . . . . . . . . . . . . . . Damage Inflicted 444886 | 91 2217 109 2935 234 4922 593 5091 6993 1700 18605 11621 991 515 17562 43073 5174 4419 . 4188 42633 21987 12391 44610 50773 49470 91989 Guns 23277 | 91 2217 109 2935 234 2872 593 5091 6993 1268 410 . . . . . . . . . . . . . 464 . . Cannons 419157 | . . . . . 2050 . . . 432 17728 11621 991 515 16887 42196 5174 4419 . 4188 42495 21987 12391 44610 50224 49260 91989 Explosions 2314 | . . . . . . . . . . 467 . . . 675 877 . . . . . . . . 85 210 . Melee 138 | . . . . . . . . . . . . . . . . . . . . 138 . . . . . . Ramming . | . . . . . . . . . . . . . . . . . . . . . . . . . . . Kinetic 34834 | 30 697 109 2935 234 2872 593 5091 6993 1700 4861 7804 915 . . . . . . . . . . . . . . Thermal 267274 | 61 1520 . . . 2050 . . . . 13744 3817 76 515 16887 43073 5174 4419 . 4188 42495 21987 12391 44610 50267 . . Explosive 295 | . . . . . . . . . . . . . . . . . . . . . . . . 85 210 . Electromagnetic 675 | . . . . . . . . . . . . . . 675 . . . . . . . . . . . . Impact 141670 | . . . . . . . . . . . . . . . . . . . . . . . . 421 49260 91989 Slashing 138 | . . . . . . . . . . . . . . . . . . . . 138 . . . . . . Piercing . | . . . . . . . . . . . . . . . . . . . . . . . . . . . Highest Corruption 30 | . . . . . 2 2 2 2 2 8 10 10 10 24 4 4 4 4 4 2 5 . 6 10 9 30 Average Corruption 5 | . . . . . 1 2 1 2 2 3 8 10 10 13 3 4 4 4 4 1 2 . 4 5 5 16 Corruption Purged . | . . . . . . . . . . . . . . . . . . . . . . . . . . . Corruption Blocked . | . . . . . . . . . . . . . . . . . . . . . . . . . . . Effects 562 | . . . . . 11 10 4 26 17 74 34 16 5 56 38 9 8 1 8 13 8 . 28 47 28 121 Message Errors 153 | . . . . . 2 2 1 11 5 19 11 10 . 19 7 4 4 . 2 4 2 . 9 8 6 27 Matter Fused 113 | . . . . . 2 3 . 2 3 17 6 2 2 11 10 3 . 1 2 1 2 . 4 10 8 24 Heat Flow Errors 59 | . . . . . 1 2 . 3 3 9 2 . . 7 5 . 1 . 1 2 2 . 5 3 4 9 Energy Discharges 61 | . . . . . . 2 1 3 1 7 3 1 . 4 3 . 2 . 1 4 1 . 2 5 5 16 Parts Rejected 10 | . . . . . . . . . . 1 . . . 1 . . . . . . 1 . 1 1 1 4 Parts Fused 5 | . . . . . . . 1 . 1 . 1 . . . . . . . . . . . 1 . . 1 Data Loss (minor) 62 | . . . . . 2 1 1 1 1 12 5 2 . 7 1 2 1 . 1 2 . . 3 11 2 7 Data Loss (major) 24 | . . . . . 2 . . 1 1 4 1 . . 2 4 . . . 1 . . . . 4 . 4 Misfires 1 | . . . . . . . . 1 . . . . . . . . . . . . . . . . . . Alerts 17 | . . . . . . . . 2 1 2 . . 1 1 3 . . . . . . . 2 . 1 4 Misdirections 8 | . . . . . . . . . . . . . 1 2 . . . . . . . . . . . 5 Weapon Failures 49 | . . . . . 2 . . 2 1 3 5 1 1 2 5 . . . . . . . 1 5 1 20 Overload Shots 3 | . . . . . . . . . . . . . . . . . . . . 3 . . . . . . Effects 1 | . . . . . . . . . . . . . . . . . . . . 1 . . . . . . Short Circuit 1 | . . . . . . . . . . . . . . . . . . . . 1 . . . . . . Overflow Damage 86589 | . . . . . 108 . . . 8 150 473 . . 1787 6289 1084 352 . 1094 7556 2618 1949 4975 7529 17312 33305 Projectiles 86136 | . . . . . 108 . . . 8 115 473 . . 1756 6000 1084 352 . 1094 7458 2618 1949 4975 7529 17312 33305 Explosions 355 | . . . . . . . . . . 35 . . . 31 289 . . . . . . . . . . . Melee 98 | . . . . . . . . . . . . . . . . . . . . 98 . . . . . . Knockbacks 454 | . . . . . . . . . 10 51 60 . . . . . . . . . . . . . 148 185 Impact 294 | . . . . . . . . . . . . . . . . . . . . . . . . . 129 165 Kinetic 101 | . . . . . . . . . 9 46 46 . . . . . . . . . . . . . . . Secondary 59 | . . . . . . . . . 1 5 14 . . . . . . . . . . . . . 19 20 Self-Inflicted Damage 426 | . . . . . . . . . . . . . . 183 78 . . . . . . . . 60 105 . Shots 6 | . . . . . . . . . . . . . . 2 2 . . . . . . . . 1 1 . Rammed . | . . . . . . . . . . . . . . . . . . . . . . . . . . . Targets Rammed . | . . . . . . . . . . . . . . . . . . . . . . . . . . . Kicked . | . . . . . . . . . . . . . . . . . . . . . . . . . . . Crushed . | . . . . . . . . . . . . . . . . . . . . . . . . . . . Highest Temperature 450 | . 39 . 22 45 257 225 20 130 151 221 320 26 32 293 324 114 194 . 42 450 251 53 231 191 171 359 Average Temperature 55 | . 8 . 6 22 83 121 4 28 52 76 47 17 23 63 78 50 54 . 22 30 34 18 20 22 55 94 Received Heat Transfer 4701 | . 540 . 204 36 30 . 183 319 94 619 408 . 5 135 369 31 40 . 33 188 184 58 261 667 112 185 Effects 8 | . . . . . 3 1 . . . . 1 . . . . . . . . . . . . . . 3 Energy Bleed 2 | . . . . . . 1 . . . . . . . . . . . . . . . . . . . 1 Interference 5 | . . . . . 3 . . . . . 1 . . . . . . . . . . . . . . 1 Short Circuit 1 | . . . . . . . . . . . . . . . . . . . . . . . . . . 1 Siege Activations . | . . . . . . . . . . . . . . . . . . . . . . . . . . . Martial Activations . | . . . . . . . . . . . . . . . . . . . . . . . . . . . Shielding Activations . | . . . . . . . . . . . . . . . . . . . . . . . . . . . Robots Disrupted . | . . . . . . . . . . . . . . . . . . . . . . . . . . . Combat Hostiles . | . . . . . . . . . . . . . . . . . . . . . . . . . . . Robots Corrupted 213 | . . . . . . . . . . . 1 . . . . . . . . . . . . . 103 109 Combat Hostiles 203 | . . . . . . . . . . . 1 . . . . . . . . . . . . . 99 103 Parts Fried 368 | . . . . . . . . . . . 3 . . 4 . . . . . . . . . . 173 188 Impact Corruptions 864 | . . . . . . . . . . . 1 . . . . . . . . . . . . . 315 548 Robots Melted 79 | . . . . . . . . . . 22 . . . 4 11 1 . . . 7 10 5 8 11 . . Combat Hostiles 67 | . . . . . . . . . . 18 . . . 4 10 1 . . . 5 7 4 7 11 . . Parts Melted 361 | 2 13 . . . 6 . . . . 163 7 . . 7 32 2 . . . 36 15 14 24 40 . . Heat Transferred 126284 | 259 4978 . . . 4160 . . . . 31886 3441 74 407 6298 14800 1850 1550 . 1450 13449 7250 4175 13691 16566 . . Parts Sabotaged 13 | . . . . . . . . . . 5 . . . . . . . . . . 2 . 2 3 1 . Parts Stolen . | . . . . . . . . . . . . . . . . . . . . . . . . . . . Parts Stripped . | . . . . . . . . . . . . . . . . . . . . . . . . . . . Power Chain Reactions 2 | . . . . . . . . . . . . . . . 2 . . . . . . . . . . . Alert | -11 -10 -10 -9 -9 -9 -8 -8 -8 -8 -6 -6 -6 -6 -6 -5 -5 -5 -5 -4 -4 -4 -3 -3 -2 -1 -1 ------- Run | Yrd Mat Min Mat Min Exi Min Mat Sto Rec Fac Ext Cet Arc Hub Fac Upp Upp Zhi Pro Fac Arm Res Qua Res Acc Com Maximum Alert Level 5 | . 3 1 4 2 . 1 3 5 3 5 5 5 3 5 5 . . . . 5 5 5 5 5 5 5 Low Security (%) 6 | 100 35 . 9 . . 74 41 . . . . . . . . . . . . 10 . . . . . . Level 1 9 | . 32 100 25 . . 25 9 2 . 14 . . . 14 . . . . . 32 . . . . . . Level 2 16 | . 25 . 29 100 . . 32 16 94 27 . . . 18 . . . . . 5 . . . . . . Level 3 10 | . 7 . 24 . . . 16 29 5 10 . . 100 5 34 . . . . 12 . . . . . . Level 4 10 | . . . 9 . . . . 48 . 26 . . . 17 8 . . . . 15 . . . . . . Level 5 10 | . . . . . . . . 4 . . 33 100 . 21 22 . . . . . 10 13 . 35 6 5 High Security 32 | . . . . . . . . . . 20 66 . . 21 34 . . . . 24 89 86 . 65 93 94 Max Security 4 | . . . . . . . . . . . . . . . . . . . . . . . 99 . . . Sterilizations 7 | . . . . . . . 1 . . 1 . . . . 1 . . . . 1 . . 1 1 1 . Peak Influence 11162 | 5 814 372 1197 510 . 253 856 1614 725 3569 3772 2187 982 2273 5739 . . . . 3459 3981 3343 6096 7900 9529 11162 Initial 6098 | . 3 312 125 460 . . 76 351 627 489 1748 2112 852 336 1113 . . . . 126 1694 2089 1880 3429 4740 6098 Average 2568 | . 316 336 592 458 . 124 385 1055 570 1132 2496 2117 940 1275 2479 . . . . 1047 2656 2649 4359 4762 7110 8876 Influence Increases 51620 | 10 1266 100 1574 70 1169 383 1602 1897 351 4100 2254 272 140 2405 5204 435 431 . 361 4005 2317 1284 4216 5751 4839 5184 Destroy 0b10 Robot/C 33040 | . 780 60 900 60 1120 300 1060 1220 140 2420 1480 160 80 1160 3020 400 360 . 280 2700 1720 920 3160 3060 3120 3360 Destroy 0b10 Robot/NC 1400 | 10 5 . 40 . . 5 80 155 50 120 35 10 . 105 170 . . . . 125 35 35 95 70 90 165 Destroy Leader 5564 | . 162 10 296 10 . 40 278 306 . 466 156 . . 302 524 20 60 . 60 554 284 156 426 494 480 480 Allied During Kill 697 | . . . . . 4 . . 9 . 9 292 87 60 192 . . 11 . 21 12 . . . . . . Successful Hack 281 | . 34 . 8 . . 8 3 30 11 4 5 . . 2 52 . . . . 65 21 . . 30 . 8 Select Force Hacks 790 | . 210 . 280 . . . 30 60 120 . . . . . 30 . . . . 60 . . . . . . Disable Machine 1335 | . . . . . . 30 90 90 30 90 15 . . 210 645 . . . . . 30 . 60 15 . 30 Anti-Garrison Action 800 | . . . . . . . . . . . . . . . . . . . . 150 . 150 . 150 300 50 Destroy Structure 2028 | . . . 5 . . . 16 12 . 121 31 15 . 329 508 . . . . 84 32 8 40 402 114 311 Advance Influence 300 | . . . . . . . . . . 300 . . . . . . . . . . . . . . . . Partial Spotted 330 | . . . 45 . . . . 15 . 15 . . . 30 . . . . . 45 . . . 75 60 45 Lose Combat Pursuer 5055 | . 75 30 . . 45 . 45 . . 555 240 . . 75 255 15 . . . 210 195 15 435 1455 675 735 Influence Decreases 40368 | 5 469 580 715 841 794 973 965 1121 1507 983 2051 1914 1308 1094 1738 2330 945 3330 160 747 1795 1922 1463 3947 3210 3461 Entered New Map 31632 | . 2 490 197 721 410 785 119 481 981 263 1821 1660 1278 626 1160 2124 731 3330 . 75 1765 1892 1463 2667 3160 3431 Time Decay 7136 | 5 457 80 518 120 354 188 546 580 526 720 130 214 30 428 568 206 214 . 160 592 30 30 . 380 40 20 Lost Part 30 | . . . . . 10 . . . . . . . . . . . . . . . . . . . 10 10 Lost Ally 370 | . 10 10 . . 20 . . 60 . . 100 40 . 40 10 . . . . 80 . . . . . . Purge Threat 1200 | . . . . . . . 300 . . . . . . . . . . . . . . . . 900 . . Squads Dispatched 396 | . 12 . 13 . . . 13 16 . 57 17 . . 16 34 . 1 . . 30 23 . 42 49 37 36 Investigation 45 | . 12 . 13 . . . 5 8 . 1 2 . . . 2 . . . . 2 . . . . . . Extermination 22 | . . . . . . . . . . 8 . . . 2 3 . . . . 5 . . . 4 . . Reinforcement 32 | . . . . . . . 3 2 . 10 1 . . 3 1 . . . . 6 1 . . 4 1 . Assault 288 | . . . . . . . . 5 . 35 14 . . 11 28 . 1 . . 17 22 . 42 41 36 36 Garrison 9 | . . . . . . . 5 1 . 3 . . . . . . . . . . . . . . . . Intercept . | . . . . . . . . . . . . . . . . . . . . . . . . . . . Searches Triggered . | . . . . . . . . . . . . . . . . . . . . . . . . . . . Unchained Authorized 3 | . . . . . . . . . . . . . . 1 . . . . . 1 . . . 1 . . Construction Impeded . | . . . . . . . . . . . . . . . . . . . . . . . . . . . Haulers Reinforced 3 | . . . . . . . . . . 3 . . . . . . . . . . . . . . . . Active Scanning Responses . | . . . . . . . . . . . . . . . . . . . . . . . . . . . Cargo Convoy Interrupts 2 | . . . . . . . . . . 1 . . . . . . . . . 1 . . . . . . Stealth | -11 -10 -10 -9 -9 -9 -8 -8 -8 -8 -6 -6 -6 -6 -6 -5 -5 -5 -5 -4 -4 -4 -3 -3 -2 -1 -1 --------- Run | Yrd Mat Min Mat Min Exi Min Mat Sto Rec Fac Ext Cet Arc Hub Fac Upp Upp Zhi Pro Fac Arm Res Qua Res Acc Com Distress Signals 38 | . 1 . 2 . . . 3 3 1 1 3 1 . 1 2 . . . . 1 1 3 3 7 2 3 Communications Jammed . | . . . . . . . . . . . . . . . . . . . . . . . . . . . Distress Signals . | . . . . . . . . . . . . . . . . . . . . . . . . . . . Times Spotted 2310 | . 55 8 54 4 53 15 56 72 7 216 100 8 2 82 185 20 19 . 14 166 125 47 241 318 208 235 Peak Tracking Total 61 | . 7 9 6 2 7 4 8 10 3 15 33 5 2 15 11 6 5 . 4 15 29 10 25 61 24 36 Tactical Retreats 153 | . 3 2 . . 2 . 3 . . 17 5 . . 5 10 1 . . . 7 5 1 17 31 19 25 Traps | -11 -10 -10 -9 -9 -9 -8 -8 -8 -8 -6 -6 -6 -6 -6 -5 -5 -5 -5 -4 -4 -4 -3 -3 -2 -1 -1 ------- Run | Yrd Mat Min Mat Min Exi Min Mat Sto Rec Fac Ext Cet Arc Hub Fac Upp Upp Zhi Pro Fac Arm Res Qua Res Acc Com Traps Triggered 20 | . 2 . 1 . . . 1 2 . 2 1 . . 2 2 . . . . 1 . 1 . 4 1 . Indirectly . | . . . . . . . . . . . . . . . . . . . . . . . . . . . Trap Hack Attempts . | . . . . . . . . . . . . . . . . . . . . . . . . . . . Triggered . | . . . . . . . . . . . . . . . . . . . . . . . . . . . Disarmed . | . . . . . . . . . . . . . . . . . . . . . . . . . . . Reprogrammed . | . . . . . . . . . . . . . . . . . . . . . . . . . . . Reused . | . . . . . . . . . . . . . . . . . . . . . . . . . . . Traps Extracted . | . . . . . . . . . . . . . . . . . . . . . . . . . . . Installed . | . . . . . . . . . . . . . . . . . . . . . . . . . . . Triggered . | . . . . . . . . . . . . . . . . . . . . . . . . . . . Machines | -11 -10 -10 -9 -9 -9 -8 -8 -8 -8 -6 -6 -6 -6 -6 -5 -5 -5 -5 -4 -4 -4 -3 -3 -2 -1 -1 ---------- Run | Yrd Mat Min Mat Min Exi Min Mat Sto Rec Fac Ext Cet Arc Hub Fac Upp Upp Zhi Pro Fac Arm Res Qua Res Acc Com Machines Disabled 116 | . . . . . 4 2 6 6 2 6 1 . . 14 47 2 1 . . 1 2 1 6 5 6 4 Max in Single Turn 10 | . . . . . 1 1 4 1 1 3 1 . . 9 10 1 1 . . 1 1 1 1 1 1 2 Garrison Access 17 | . . . . . . . 1 1 . 2 . . . 1 3 . . . . 2 . 2 . 2 3 . Phase Generator 1 | . . . . . . . . . . . . . . . . . . . . . . . . . . 1 Network Hub 3 | . . . . . . . . . . . . . . 3 . . . . . . . . . . . . Machines Repaired . | . . . . . . . . . . . . . . . . . . . . . . . . . . . Machines Dismantled . | . . . . . . . . . . . . . . . . . . . . . . . . . . . Machines Sabotaged 8 | . 3 . 5 . . . . . . . . . . . . . . . . . . . . . . . Overloaded Fab Kills . | . . . . . . . . . . . . . . . . . . . . . . . . . . . Hacking | -11 -10 -10 -9 -9 -9 -8 -8 -8 -8 -6 -6 -6 -6 -6 -5 -5 -5 -5 -4 -4 -4 -3 -3 -2 -1 -1 --------- Run | Yrd Mat Min Mat Min Exi Min Mat Sto Rec Fac Ext Cet Arc Hub Fac Upp Upp Zhi Pro Fac Arm Res Qua Res Acc Com Machines Accessed 114 | . 11 . 16 . 1 1 11 13 11 8 5 . . 4 9 2 1 4 . 9 1 1 . 5 . 1 Terminals 65 | . 8 . 12 . . 1 6 9 6 3 5 . . 3 2 1 . . . 3 . . . 5 . 1 Fabricators 7 | . . . . . . . . . . 2 . . . . 2 . . . . 2 1 . . . . . Repair Stations 8 | . 1 . 2 . . . 2 1 . . . . . . 1 . . . . 1 . . . . . . Recycling Units 12 | . 2 . 1 . . . 1 2 4 . . . . . . . . . . 2 . . . . . . Scanalyzers 4 | . . . 1 . . . 1 . . . . . . . 2 . . . . . . . . . . . Garrison Access 10 | . . . . . . . 1 1 . 3 . . . 1 2 . . . . 1 . 1 . . . . Total Hacks 287 | . 39 . 29 . 1 2 26 24 24 16 11 . . 8 27 8 1 17 . 21 2 3 . 23 . 5 Successful 160 | . 24 . 19 . 1 1 13 15 17 5 3 . . 4 12 8 1 17 . 10 1 . . 8 . 1 Failed 124 | . 15 . 9 . . 1 12 9 7 11 8 . . 4 14 . . . . 11 1 3 . 15 . 4 Catastrophic 25 | . . . . . . . 2 . . . 2 . . 1 7 . . . . 4 . 1 . 6 . 2 Database Lockouts 3 | . . . 1 . . . 1 . . . . . . . 1 . . . . . . . . . . . Manual 164 | . 30 . 26 . 1 2 13 14 20 . 1 1 . 5 12 7 . . . 12 2 . . 18 . . Terminals 194 | . 36 . 24 . . 2 20 18 17 6 11 . . 6 10 7 . . . 9 . . . 23 . 5 Fabricators 18 | . . . . . . . . . . 4 . . . . 7 . . . . 5 2 . . . . . Repair Stations 12 | . 1 . 2 . . . 3 3 . . . . . . 1 . . . . 2 . . . . . . Recycling Units 15 | . 2 . 1 . . . 1 2 5 . . . . . . . . . . 4 . . . . . . Scanalyzers 6 | . . . 2 . . . 1 . . . . . . . 3 . . . . . . . . . . . Garrison Access 20 | . . . . . . . 1 1 . 6 . . . 2 6 . . . . 1 . 3 . . . . Terminal Hacks 67 | . 9 . 1 . 1 1 4 7 2 1 2 . . . 4 8 1 17 . 2 . . . 6 . 1 Record 16 | . . . . . . . . . . . 1 . . . 3 7 . 5 . . . . . . . . Part Schematic 4 | . . . . . . . . . . . . . . . . . . 4 . . . . . . . . Robot Analysis 11 | . 4 . 1 . . . . 1 . . . . . . . . . 4 . 1 . . . . . . Prototype ID Bank 5 | . 1 . . . . . . . . . . . . . . . . 4 . . . . . . . . Open Door 8 | . . . . . . . . 4 . 1 1 . . . . 1 1 . . . . . . . . . Level Access Points 1 | . . . . . . 1 . . . . . . . . . . . . . . . . . . . . Branch Access Points 4 | . 1 . . . . . 1 1 . . . . . . 1 . . . . . . . . . . . Terminal Index 1 | . 1 . . . . . . . . . . . . . . . . . . . . . . . . . Scanalyzer Index 1 | . 1 . . . . . . . . . . . . . . . . . . . . . . . . . Alert Level 2 | . 1 . . . . . 1 . . . . . . . . . . . . . . . . . . . Unreport Threat 8 | . . . . . . . 2 . . . . . . . . . . . . . . . . 6 . . Locate Traps 2 | . . . . . . . . 1 . . . . . . . . . . . 1 . . . . . . Proto ID Catalog 1 | . . . . . 1 . . . . . . . . . . . . . . . . . . . . . Disengage Seal 1 | . . . . . . . . . . . . . . . . . . . . . . . . . . 1 Release Object 2 | . . . . . . . . . 2 . . . . . . . . . . . . . . . . . Fabricator Hacks 4 | . . . . . . . . . . 2 . . . . . . . . . 2 . . . . . . Network Status 3 | . . . . . . . . . . 2 . . . . . . . . . 1 . . . . . . Build 1 | . . . . . . . . . . . . . . . . . . . . 1 . . . . . . Repair Station Hacks 2 | . . . . . . . . . . . . . . . . . . . . 2 . . . . . . Scan Component 1 | . . . . . . . . . . . . . . . . . . . . 1 . . . . . . Repair 1 | . . . . . . . . . . . . . . . . . . . . 1 . . . . . . Recycling Unit Hacks . | . . . . . . . . . . . . . . . . . . . . . . . . . . . Scanalyzer 3 | . . . 1 . . . 1 . . . . . . . 1 . . . . . . . . . . . Retrieve Study 3 | . . . 1 . . . 1 . . . . . . . 1 . . . . . . . . . . . Garrison Access Hacks 8 | . . . . . . . 1 1 . 2 . . . 1 2 . . . . 1 . . . . . . Seal Access 8 | . . . . . . . 1 1 . 2 . . . 1 2 . . . . 1 . . . . . . Unauthorized Hacks 75 | . 15 . 17 . . . 7 7 15 . 1 . . 3 4 . . . . 3 1 . . 2 . . Terminals 52 | . 12 . 14 . . . 4 4 11 . 1 . . 3 1 . . . . . . . . 2 . . Assimilate 5 | . 2 . 2 . . . . . . . . . . . 1 . . . . . . . . . . . Botnet 18 | . 3 . 2 . . . 3 . 5 . 1 . . 2 . . . . . . . . . 2 . . Operators 2 | . 1 . 1 . . . . . . . . . . . . . . . . . . . . . . . Skim 7 | . . . . . . . . . 6 . . . . 1 . . . . . . . . . . . . Sabotage 20 | . 6 . 9 . . . 1 4 . . . . . . . . . . . . . . . . . . Fabricators 3 | . . . . . . . . . . . . . . . 1 . . . . 1 1 . . . . . Haulers 3 | . . . . . . . . . . . . . . . 1 . . . . 1 1 . . . . . Repair Stations 7 | . 1 . 2 . . . 2 1 . . . . . . 1 . . . . . . . . . . . Patch 7 | . 1 . 2 . . . 2 1 . . . . . . 1 . . . . . . . . . . . Recycling Units 12 | . 2 . 1 . . . 1 2 4 . . . . . . . . . . 2 . . . . . . Tunnel 12 | . 2 . 1 . . . 1 2 4 . . . . . . . . . . 2 . . . . . . Scanalyzers 1 | . . . . . . . . . . . . . . . 1 . . . . . . . . . . . Extract 1 | . . . . . . . . . . . . . . . 1 . . . . . . . . . . . Garrison Access . | . . . . . . . . . . . . . . . . . . . . . . . . . . . Data Cores Recovered 9 | . . . . . . . 1 . . 2 . . . 2 1 . . . . 1 1 . . 1 . . Used 2 | . . . . . . . . . . 1 . . . . 1 . . . . . . . . . . . Hacking Detections 57 | . 7 . 4 . . 1 6 6 5 4 4 . . 4 4 1 . . . 3 1 1 . 5 . 1 Full Trace Events 11 | . 2 . 2 . . . 1 1 2 1 1 . . . . 1 . . . . . . . . . . Feedback Events 1 | . . . . . . . 1 . . . . . . . . . . . . . . . . . . . Corruption 1 | . . . . . . . 1 . . . . . . . . . . . . . . . . . . . Feedback Blocked . | . . . . . . . . . . . . . . . . . . . . . . . . . . . Robot Schematics Acquired . | . . . . . . . . . . . . . . . . . . . . . . . . . . . Robots Built 2 | . . . . . . . . . . . . . . . . . . . . 2 . . . . . . Authchips . | . . . . . . . . . . . . . . . . . . . . . . . . . . . Time 93 | . . . . . . . . . . . . . . . . . . . . 93 . . . . . . Total Robot Build Rating 14 | . . . . . . . . . . . . . . . . . . . . 14 . . . . . . Part Schematics Acquired 7 | . . . . . . . . . . . . . . . 3 . . 4 . . . . . . . . Parts Built . | . . . . . . . . . . . . . . . . . . . . . . . . . . . Authchips . | . . . . . . . . . . . . . . . . . . . . . . . . . . . Time . | . . . . . . . . . . . . . . . . . . . . . . . . . . . Total Part Build Rating . | . . . . . . . . . . . . . . . . . . . . . . . . . . . Part Studies Acquired 2 | . . . 1 . . . . . . . . . . . 1 . . . . . . . . . . . Parts Repaired 1 | . . . . . . . . . . . . . . . . . . . . 1 . . . . . . Time 62 | . . . . . . . . . . . . . . . . . . . . 62 . . . . . . Parts Recycled . | . . . . . . . . . . . . . . . . . . . . . . . . . . . Recycled Matter . | . . . . . . . . . . . . . . . . . . . . . . . . . . . Retrieved Matter . | . . . . . . . . . . . . . . . . . . . . . . . . . . . Retrieved Components . | . . . . . . . . . . . . . . . . . . . . . . . . . . . Parts Scanalyzed . | . . . . . . . . . . . . . . . . . . . . . . . . . . . Part Schematics Acquired . | . . . . . . . . . . . . . . . . . . . . . . . . . . . Parts Damaged . | . . . . . . . . . . . . . . . . . . . . . . . . . . . Bothacking | -11 -10 -10 -9 -9 -9 -8 -8 -8 -8 -6 -6 -6 -6 -6 -5 -5 -5 -5 -4 -4 -4 -3 -3 -2 -1 -1 ------------ Run | Yrd Mat Min Mat Min Exi Min Mat Sto Rec Fac Ext Cet Arc Hub Fac Upp Upp Zhi Pro Fac Arm Res Qua Res Acc Com Used RIF Installer . | . . . . . . . . . . . . . . . . . . . . . . . . . . . Robots Hacked . | . . . . . . . . . . . . . . . . . . . . . . . . . . . Non-combat . | . . . . . . . . . . . . . . . . . . . . . . . . . . . Combat . | . . . . . . . . . . . . . . . . . . . . . . . . . . . Robot Hacks Applied . | . . . . . . . . . . . . . . . . . . . . . . . . . . . Relay Couplers Released 3 | . . . . . . . . . . . . . . . . . . . . 1 . . . . 2 . Machine Destruction 3 | . . . . . . . . . . . . . . . . . . . . 1 . . . . 2 . Fabnet Peak Effective % . | . . . . . . . . . . . . . . . . . . . . . . . . . . . Robots Rewired 14 | . . . . . . . . . 5 . 6 . . . . . 3 . . . . . . . . . Allies Hacked 2 | . . . . . . . . . . . 2 . . . . . . . . . . . . . . . Hacks Repelled . | . . . . . . . . . . . . . . . . . . . . . . . . . . . Allies | -11 -10 -10 -9 -9 -9 -8 -8 -8 -8 -6 -6 -6 -6 -6 -5 -5 -5 -5 -4 -4 -4 -3 -3 -2 -1 -1 -------- Run | Yrd Mat Min Mat Min Exi Min Mat Sto Rec Fac Ext Cet Arc Hub Fac Upp Upp Zhi Pro Fac Arm Res Qua Res Acc Com Total Allies 30 | . 2 . 2 1 . . . 2 5 . 7 5 . . 1 . 3 . . 2 . . . . . . Largest Group 6 | . 2 1 2 3 3 2 2 2 5 2 6 6 4 3 1 . 3 3 3 3 . . . . . . Highest-Rated Group 611 | . 20 10 20 51 51 20 20 62 86 39 286 611 416 288 26 . 90 90 90 90 . . . . . . Highest-Rated Ally 159 | . 10 10 10 31 31 10 10 31 34 34 159 153 128 96 26 . 30 30 30 31 . . . . . . Total Orders 26 | . 8 . 5 1 1 1 2 3 . . . . . . 4 . . . . 1 . . . . . . STAY 18 | . 5 . 3 1 1 1 1 2 . . . . . . 3 . . . . 1 . . . . . . FOLLOW 8 | . 3 . 2 . . . 1 1 . . . . . . 1 . . . . . . . . . . . Ally Attacks 208 | . . . . . 3 . . 8 . 11 78 31 9 57 . . . . . 11 . . . . . . Total Damage 6293 | . . . . . 20 . . 149 . 320 2083 1433 349 1550 . . . . . 389 . . . . . . Kills 37 | . . . . . . . . 1 . 4 11 6 2 7 . . . . . 6 . . . . . . Allies Corrupted . | . . . . . . . . . . . . . . . . . . . . . . . . . . . Allies Melted . | . . . . . . . . . . . . . . . . . . . . . . . . . . . Intel | -11 -10 -10 -9 -9 -9 -8 -8 -8 -8 -6 -6 -6 -6 -6 -5 -5 -5 -5 -4 -4 -4 -3 -3 -2 -1 -1 ------- Run | Yrd Mat Min Mat Min Exi Min Mat Sto Rec Fac Ext Cet Arc Hub Fac Upp Upp Zhi Pro Fac Arm Res Qua Res Acc Com Active Infowar (turns) 30222 | 3 1167 164 1418 . 887 416 1576 1793 1457 4263 798 450 67 1348 2623 433 452 93 321 2444 695 506 595 2560 1522 2171 Optics 587 | . . . . . . . . . . . . . . . . . . . . 587 . . . . . . Sensors 27470 | . . . . . 887 416 1576 1793 1457 4263 798 450 67 1348 2623 433 452 93 321 2444 695 506 595 2560 1522 2171 Terrain 352 | . . . . . . . . . . . . . . 348 . . . . . . . . . 4 . . Seismic 2754 | 3 1167 164 1418 . . . . . . . . . . . 2 . . . . . . . . . . . Cloaking 1 | . . . . . . . . . . . . . . . . . . . . . . . . . . 1 ECM 3 | . . . . . . . . . . . . . . . . . . . . . . . . 3 . . Robot Analysis Total 11 | . 4 . 1 . . . . 1 . . . . . . . . . 4 . 1 . . . . . . Derelict Logs Recovered 7 | . . 1 . 2 . . . . . . . . . . . 1 2 . 1 . . . . . . . Drone Launches . | . . . . . . . . . . . . . . . . . . . . . . . . . . . Drone Recoveries . | . . . . . . . . . . . . . . . . . . . . . . . . . . . Exploration | -11 -10 -10 -9 -9 -9 -8 -8 -8 -8 -6 -6 -6 -6 -6 -5 -5 -5 -5 -4 -4 -4 -3 -3 -2 -1 -1 ------------- Run | Yrd Mat Min Mat Min Exi Min Mat Sto Rec Fac Ext Cet Arc Hub Fac Upp Upp Zhi Pro Fac Arm Res Qua Res Acc Com Turns Passed 31701 | 74 1167 164 1424 259 1061 416 1576 1793 1479 4264 798 450 67 1348 2623 433 452 93 321 2467 695 506 1462 2560 1522 2227 Spaces Moved 39660 | 59 1739 547 2158 663 1094 578 1977 2069 1403 4961 781 312 73 1681 2640 905 864 150 642 3686 812 673 1632 3325 1673 2563 Core 5 | 5 . . . . . . . . . . . . . . . . . . . . . . . . . . Treads . | . . . . . . . . . . . . . . . . . . . . . . . . . . . Legs . | . . . . . . . . . . . . . . . . . . . . . . . . . . . Wheels 60 | 54 6 . . . . . . . . . . . . . . . . . . . . . . . . . Hover . | . . . . . . . . . . . . . . . . . . . . . . . . . . . Flight 39595 | . 1733 547 2158 663 1094 578 1977 2069 1403 4961 781 312 73 1681 2640 905 864 150 642 3686 812 673 1632 3325 1673 2563 Fastest Speed 26 | 50 26 26 26 31 31 50 50 50 50 39 39 39 39 39 39 39 39 39 39 39 42 42 42 42 42 42 Average Speed 41 | 77 30 26 29 31 48 50 50 50 50 40 39 39 39 39 39 39 39 39 39 42 42 42 42 42 42 42 Slowest Speed 200 | 80 200 26 31 31 50 50 50 50 50 50 39 39 39 39 39 39 39 39 39 150 42 132 42 132 42 200 Overloaded Moves . | . . . . . . . . . . . . . . . . . . . . . . . . . . . Propulsion Burnouts . | . . . . . . . . . . . . . . . . . . . . . . . . . . . Robots Hopped 385 | . 39 10 40 10 . 6 22 62 12 53 12 . . 14 9 . 4 . . 24 4 9 9 28 10 8 Potential Cave-ins 7 | . . . . . . . . . . 2 . . . . . . . . . 2 . . . 3 . . Cave-ins Triggered . | . . . . . . . . . . . . . . . . . . . . . . . . . . . Teleports 1 | . . . . . . . . . . . . . . . . . . 1 . . . . . . . . Exploration Rate (%) 72 | 4 98 81 98 96 70 99 94 94 98 75 81 63 67 93 44 95 90 60 84 52 39 19 95 71 40 51 Regions Visited 26 Branch Regions 17 Pre-discovered Areas 16 | . 2 . 1 . . . 1 2 4 . . . . . . 1 . 3 . 2 . . . . . . Known Exits Taken 24 | . 1 . 1 1 1 1 1 1 1 1 1 1 1 1 1 1 1 1 1 1 1 1 1 1 1 . Unknown Exits Taken 2 | 1 . 1 . . . . . . . . . . . . . . . . . . . . . . . . Scrap Searched 13 | . . 1 . 2 . 1 . . . . . . . . . 3 2 . 4 . . . . . . . Spaces Dug 78 | . . . . . . . 1 1 . 13 . . . 5 3 . . . . 14 . . . 29 4 8 Terrain Destroyed 1378 | . . . . . . . 12 5 3 108 39 3 . 503 271 6 4 . 1 50 15 4 21 171 37 125 Melee 12 | . . . . . . . . . . 11 . . . . . . . . . . . . . 1 . . Projectile 466 | . . . . . . . 8 4 3 16 39 3 . 18 42 6 4 . 1 50 15 4 21 150 20 62 AOE 895 | . . . . . . . . . . 81 . . . 485 229 . . . . . . . . 20 17 63 Terrain Rammed . | . . . . . . . . . . . . . . . . . . . . . . . . . . . Walls Destroyed . | . . . . . . . . . . . . . . . . . . . . . . . . . . . Machines Disabled . | . . . . . . . . . . . . . . . . . . . . . . . . . . . Actions | -11 -10 -10 -9 -9 -9 -8 -8 -8 -8 -6 -6 -6 -6 -6 -5 -5 -5 -5 -4 -4 -4 -3 -3 -2 -1 -1 --------- Run | Yrd Mat Min Mat Min Exi Min Mat Sto Rec Fac Ext Cet Arc Hub Fac Upp Upp Zhi Pro Fac Arm Res Qua Res Acc Com Total 51617 | 72 2108 545 2718 698 1411 672 2326 2555 2120 6843 1130 625 105 2216 4015 964 958 179 698 4404 1083 845 2244 4239 2353 3491 Wait 5830 | . 206 1 423 35 108 83 221 379 607 1293 24 280 13 232 828 7 38 22 12 244 68 14 99 293 138 162 Move 38918 | 58 1665 527 2078 642 1093 567 1932 1955 1378 4857 758 311 72 1658 2625 904 855 149 641 3639 804 656 1612 3281 1652 2549 Hop 330 | . 34 9 39 10 . 4 22 51 12 50 10 . . 8 5 . 4 . . 22 3 7 9 15 10 6 Pick Up 61 | . 4 . 1 2 2 . 3 2 2 19 3 . . 4 2 . . . . 3 . . 3 2 7 2 Fast Attach 94 | 7 3 1 6 . 3 . 1 . 1 14 . 2 . 5 . . . 2 . 17 3 1 4 9 9 6 Attach 6 | . 2 . 1 . 1 . . . . 1 . . . . . . . . . . . . 1 . . . Detach 1 | . . . 1 . . . . . . . . . . . . . . . . . . . . . . . Swap 129 | 1 4 . 15 1 6 1 4 6 2 11 . 2 . 9 9 . . 6 . 9 . 5 3 23 1 11 Drop 105 | . 3 . 10 2 8 . 3 3 9 22 3 2 1 5 2 . . . . 5 . 3 4 8 8 4 Fire 4378 | 6 127 7 91 4 139 10 86 122 50 446 251 24 12 176 393 46 36 . 31 348 173 92 348 445 333 582 Melee 13 | . . . . . . . . . . 11 . . . . . . . . . 1 . . . 1 . . Ram . | . . . . . . . . . . . . . . . . . . . . . . . . . . . Kick . | . . . . . . . . . . . . . . . . . . . . . . . . . . . Crush . | . . . . . . . . . . . . . . . . . . . . . . . . . . . Escape Stasis 116 | . . . . . . . . . . . 5 . . . 15 . . . . . . . 53 43 . . Rewire 81 | . . . . . . . . . 49 . 21 . . . . . 11 . . . . . . . . . Trap . | . . . . . . . . . . . . . . . . . . . . . . . . . . . Miscellaneous 1555 | . 60 . 53 2 51 7 54 37 10 119 55 4 7 119 136 7 14 . 14 116 32 67 108 119 195 169 Route ------- -11/Scrapyard -10/Materials (discovered 5 exits: *Mat x3 / *Min x2) -10/Mines (discovered 3 exits: *Mat x2 / Sub) -9/Materials (discovered 4 exits: *Mat x3 / *Min) -9/Mines (discovered 3 exits: *Mat x2 / *Exi) -9/Exiles -8/Mines (discovered 2 exits: *Mat x2) -8/Materials (discovered 5 exits: [*Fac x3] / *Sto x2) -8/Storage (discovered 2 exits: [*Fac] / *Rec) -8/Recycling -6/Factory (discovered 6 exits: *Fac x3 / *Low / *Ext x2) -6/Extension (discovered 2 exits: *Fac / *Cet) -6/Cetus (discovered 3 exits: *Fac x2 / *Arc) -6/Archives (discovered 2 exits: *Hub x2) -6/Hub_04(d) (discovered 4 exits: *Fac x4) -5/Factory (discovered 3 exits: *Fac / *Upp x2) -5/Upper Caves -5/Upper Caves (discovered 2 exits: *Fac / *Zhi) -5/Zhirov -4/Proximity Caves -4/Factory (discovered 4 exits: *Res / *Upp x2 / *Arm) -4/Armory -3/Research (discovered 2 exits: *Res / *Qua) -3/Quarantine (discovered 3 exits: *Res / [*Sec] / [*Frg]) -2/Research (discovered 5 exits: *Acc x3 / *Tes x2) -1/Access -1/Command History --------- Turn | Location | Event 1 | -11/Scrapyard | Upgraded with Power slot (x1) 1 | -11/Scrapyard | Upgraded with Propulsion slot (x1) 1 | -11/Scrapyard | Upgraded with Utility slot (x1) 1 | -11/Scrapyard | Upgraded with Weapon slot (x1) 2 | -11/Scrapyard | Met Revision 17 3 | -11/Scrapyard | Discovered new exit (range 16) 75 | -11/Scrapyard | Entered Materials 140 | -10/Materials | Discovered new exit (range 15) 179 | -10/Materials | Discovered new exit (range 15) 304 | -10/Materials | Build established: Sprinter 317 | -10/Materials | Discovered new exit (range 16) 341 | -10/Materials | Identified exit to Mines 351 | -10/Materials | Discovered new exit (range 10) 430 | -10/Materials | Reached level 2 433 | -10/Materials | Upgraded with Propulsion slot (x1) 485 | -10/Materials | Discovered new exit (range 15) 758 | -10/Materials | Reached level 3 911 | -10/Materials | Upgraded with Weapon slot (x1) 1074 | -10/Materials | Reached level 4 1077 | -10/Materials | Upgraded with Propulsion slot (x1) 1242 | -10/Materials | Entered Mines 1242 | -10/Mines | Accompanied by 1 ally 1244 | -10/Mines | Reached level 5 1279 | -10/Mines | YI-UF0 nonchalantly dropped a Grenade Launcher on the ground 1281 | -10/Mines | Discovered new exit (range 15) 1309 | -10/Mines | Discovered new exit (range 5) 1313 | -10/Mines | Found a Scrap Suit stashed away for nefarious purposes 1327 | -10/Mines | Assembled infested the area 1332 | -10/Mines | Assisted by a Guerilla fighting off Assembled 1332 | -10/Mines | Identified exit to Subcaves 1333 | -10/Mines | Upgraded with Utility slot (x1) 1333 | -10/Mines | Upgraded with Weapon slot (x1) 1406 | -10/Mines | Entered Materials 1408 | -9/Materials | Reached level 6 1576 | -9/Materials | Reached level 7 1604 | -9/Materials | Upgraded with Utility slot (x1) 1767 | -9/Materials | Build established: Scavenger-Sprinter 1787 | -9/Materials | Discovered new exit (range 12) 1815 | -9/Materials | Discovered new exit (range 15) 1890 | -9/Materials | Reached level 8 2007 | -9/Materials | Discovered new exit (range 16) 2068 | -9/Materials | Upgraded with Utility slot (x1) 2126 | -9/Materials | Central database locked down 2180 | -9/Materials | Discovered new exit (range 15) 2225 | -9/Materials | Build established: Sprinter 2316 | -9/Materials | Reached level 9 2822 | -9/Materials | Upgraded with Utility slot (x1) 2830 | -9/Materials | Identified exit to Mines 2830 | -9/Materials | Entered Mines 2830 | -9/Mines | Accompanied by 2 allies 2832 | -9/Mines | Reached level 10 2870 | -9/Mines | Deemed a non-threat by the Exiles lab entrance 2870 | -9/Mines | Discovered new exit (range 5) 2871 | -9/Mines | Identified exit to Exiles 2891 | -9/Mines | Learned Materials stockpile data 2904 | -9/Mines | Learned Materials terminal intel 2910 | -9/Mines | Discovered new exit (range 15) 2922 | -9/Mines | Discovered new exit (range 9) 2924 | -9/Mines | Identified exit to Materials 2925 | -9/Mines | Received a Mining Laser from a helpful Derelict 2944 | -9/Mines | Joined a pair of Derelicts in attacking an 0b10 outpost 2990 | -9/Mines | Found a hidden stash of uninstalled traps 2995 | -9/Mines | Found a damaged Exp. Sensor Array with a note attached 2997 | -9/Mines | Found Prototype Device 3089 | -9/Mines | Entered Exiles 3089 | -9/Exiles | Accompanied by 3 allies 3097 | -9/Exiles | Met 8R-AWN 3103 | -9/Exiles | Met EX-HEX 3111 | -9/Exiles | Met EX-BIN 3115 | -9/Exiles | Aligned with FarCom system 3115 | -9/Exiles | Given EX-Vault access code 3122 | -9/Exiles | Opened EX-Vault 3126 | -9/Exiles | Found Flying Fortress v7 3138 | -9/Exiles | Warned to stay clear of 0b10 Research branches 3146 | -9/Exiles | Exiles lab attacked by MAIN.C 3174 | -9/Exiles | Discovered new exit (range 10) 3235 | -9/Exiles | Found Gui. Plasma Cannon 3253 | -9/Exiles | Identified Exp. Sensor Array 3426 | -9/Exiles | Build established: Tank 3733 | -9/Exiles | Reached level 11 4015 | -9/Exiles | Destroyed 20 combat bots 4113 | -9/Exiles | Build established: Scavenger-Tank 4150 | -9/Exiles | Identified exit to Mines 4150 | -9/Exiles | Left Exiles lab with Flying Fortress v7 4150 | -9/Exiles | Entered Mines 4150 | -8/Mines | Accompanied by 2 allies 4294 | -8/Mines | Reached level 12 4448 | -8/Mines | Build established: Scavenger-Scout 4566 | -8/Mines | Entered Materials 4566 | -8/Materials | Accompanied by 2 allies 4568 | -8/Materials | Loaded intel: 12 terminal locations 4727 | -8/Materials | Reached level 13 4734 | -8/Materials | Upgraded with Utility slot (x1) 4864 | -8/Materials | Identified exit to Storage 5167 | -8/Materials | Discovered new exit (range 9) 5243 | -8/Materials | Garrison activated, responded to threat 5350 | -8/Materials | Garrison activated, responded to threat 5409 | -8/Materials | Destroyed 17 combat bots 5442 | -8/Materials | Discovered new exit (range 13) 5514 | -8/Materials | Garrison activated, responded to threat 5514 | -8/Materials | Reached level 14 5686 | -8/Materials | Discovered new exit (range 9) 5770 | -8/Materials | Central database locked down 6023 | -8/Materials | Sterilization system engaged 6023 | -8/Materials | Non-combat units ordered to evacuate 6123 | -8/Materials | Combat units ordered to evacuate 6142 | -8/Materials | Entered Storage 6142 | -8/Storage | Accompanied by 2 allies 6225 | -8/Storage | Garrison activated, responded to threat 6337 | -8/Storage | Met a pair of Derelict thieves 6508 | -8/Storage | Reached level 15 6545 | -8/Storage | Destroyed 9 combat bots 6774 | -8/Storage | Discovered new exit (range 10) 6778 | -8/Storage | Identified exit to Recycling 6805 | -8/Storage | Used back door to open Recycling access 7342 | -8/Storage | First assault squad dispatched 7460 | -8/Storage | Destroyed 8 combat bots 7549 | -8/Storage | Build established: Scout 7935 | -8/Storage | Entered Recycling 8016 | -8/Recycling | Discovered new exit (range 16) 8401 | -8/Recycling | Scanned before Scraplab entrance 8408 | -8/Recycling | Entered Scraplab 8409 | -8/Recycling | Angered Scraplab inhabitants 8420 | -8/Recycling | Found Prototype Device 8420 | -8/Recycling | Identified Scrap Engine 9373 | -8/Recycling | Murdered 3 allies 9401 | -8/Recycling | Identified exit to Factory 9414 | -8/Recycling | Entered Factory 9414 | -6/Factory | Accompanied by 2 allies 9416 | -6/Factory | Reached level 16 9484 | -6/Factory | Reached level 17 9729 | -6/Factory | Upgraded with Propulsion slot (x1) 9943 | -6/Factory | Discovered new exit (range 7) 9946 | -6/Factory | Identified exit to Factory 10465 | -6/Factory | Cargo convoy interrupted 10723 | -6/Factory | Reached level 18 11158 | -6/Factory | Discovered new exit (range 12) 11162 | -6/Factory | Identified exit to Extension 11164 | -6/Factory | First assault squad dispatched 11937 | -6/Factory | Reached level 19 11947 | -6/Factory | Garrison activated, responded to threat 11963 | -6/Factory | Upgraded with Utility slot (x1) 11971 | -6/Factory | Discovered new exit (range 11) 11984 | -6/Factory | Identified exit to Lower Caves 12328 | -6/Factory | Discovered exit to Extension (range 5) 12546 | -6/Factory | Discovered exit to Factory (range 7) 12674 | -6/Factory | Spotted B-75 Beast 12692 | -6/Factory | Destroyed B-75 Beast 12804 | -6/Factory | High security lockdown imminent 12880 | -6/Factory | Discovered exit to Factory (range 16) 12884 | -6/Factory | High security lockdown engaged 13162 | -6/Factory | Reached level 20 13384 | -6/Factory | Destroyed 25 combat bots 13598 | -6/Factory | Core integrity fell below 50% 13601 | -6/Factory | Reached level 21 13618 | -6/Factory | Sterilization system engaged 13618 | -6/Factory | Non-combat units ordered to evacuate 13627 | -6/Factory | Destroyed 27 combat bots 13678 | -6/Factory | Entered Extension 13679 | -6/Extension | Core integrity fell below 20% 13813 | -6/Extension | Upgraded with Utility slot (x1) 13882 | -6/Extension | Destroyed B-75 Beast 13913 | -6/Extension | Spotted B-75 Beast 13934 | -6/Extension | Destroyed B-75 Beast 13947 | -6/Extension | High security lockdown imminent 13996 | -6/Extension | Rescued A7 14027 | -6/Extension | High security lockdown engaged 14286 | -6/Extension | Destroyed 15 combat bots 14371 | -6/Extension | Reached level 22 14468 | -6/Extension | Discovered exit to Factory (range 10) 14469 | -6/Extension | Destroyed 27 combat bots 14469 | -6/Extension | Discovered new exit (range 6) 14470 | -6/Extension | System corruption reached 10% 14470 | -6/Extension | Identified exit to Cetus 14476 | -6/Extension | Entered Cetus 14476 | -6/Cetus | Accompanied by 1 ally (A7) 14481 | -6/Cetus | Acquired a Cetus Manufacturing Module code from A7 14497 | -6/Cetus | Spotted Cetus Guard 14500 | -6/Cetus | Allies destroyed Cetus Guard 14503 | -6/Cetus | Spotted Cetus Guard 14503 | -6/Cetus | Spotted Cetus Guard 14503 | -6/Cetus | Spotted Cetus Guard 14508 | -6/Cetus | Destroyed Cetus Guard 14511 | -6/Cetus | Destroyed Cetus Guard 14515 | -6/Cetus | Allies destroyed Cetus Guard 14562 | -6/Cetus | Started Cetus Manufacturing Module 14587 | -6/Cetus | Manufactured an Enhanced Grunt 14612 | -6/Cetus | Manufactured an Enhanced Grunt 14637 | -6/Cetus | Manufactured an Enhanced Grunt 14662 | -6/Cetus | Manufactured an Enhanced Grunt 14687 | -6/Cetus | Manufactured an Enhanced Grunt 14711 | -6/Cetus | Discovered exit to Factory (range 16) 14799 | -6/Cetus | Discovered new exit (range 16) 14834 | -6/Cetus | Spotted Cetus Guard 14835 | -6/Cetus | Spotted Cetus Guard 14840 | -6/Cetus | Spotted Cetus Guard 14841 | -6/Cetus | Spotted Cetus Guard 14848 | -6/Cetus | Allies destroyed Cetus Guard 14849 | -6/Cetus | Allies destroyed Cetus Guard 14851 | -6/Cetus | Allies destroyed Cetus Guard 14852 | -6/Cetus | Allies destroyed Cetus Guard 14855 | -6/Cetus | Discovered exit to Factory (range 15) 14858 | -6/Cetus | Met Revision 17 14876 | -6/Cetus | Found Prototype Device 14876 | -6/Cetus | Identified Exp. Thermal Shield 14917 | -6/Cetus | Identified exit to Archives 14926 | -6/Cetus | Entered Archives 14926 | -6/Archives | Accompanied by 4 allies (A7) 14957 | -6/Archives | Discovered new exit (range 15) 14969 | -6/Archives | Discovered new exit (range 16) 14981 | -6/Archives | Identified exit to Hub_04(d) 14993 | -6/Archives | Entered Hub_04(d) 14993 | -6/Hub_04(d) | Accompanied by 3 allies 15015 | -6/Hub_04(d) | Unchained authorized (DW-4LL) 15055 | -6/Hub_04(d) | Exiles provided nearest exit location to -5/Factory 15189 | -6/Hub_04(d) | Build established: Scavenger-Scout 15288 | -6/Hub_04(d) | DW-4LL burst out of a wall 15296 | -6/Hub_04(d) | Destroyed DW-4LL 15302 | -6/Hub_04(d) | Found Prototype Ballistic Gun 15302 | -6/Hub_04(d) | Identified DW-4LL's Slamshotty 15343 | -6/Hub_04(d) | First assault squad dispatched 15436 | -6/Hub_04(d) | Discovered exit to Factory (range 8) 15480 | -6/Hub_04(d) | Disrupted transfer network 15501 | -6/Hub_04(d) | Network Hub disabled 15517 | -6/Hub_04(d) | Network Hub disabled 15517 | -6/Hub_04(d) | Network Hub disabled 15555 | -6/Hub_04(d) | Destroyed Lightning 15557 | -6/Hub_04(d) | Destroyed Lightning 15568 | -6/Hub_04(d) | Spotted Lightning 15576 | -6/Hub_04(d) | Destroyed Lightning 15586 | -6/Hub_04(d) | Found Prototype Processor 15586 | -6/Hub_04(d) | Identified Exp. Targeting Computer 15589 | -6/Hub_04(d) | Found Prototype Device 15589 | -6/Hub_04(d) | Identified Exp. Phase Shifter 15662 | -6/Hub_04(d) | Discovered exit to Factory (range 16) 15720 | -6/Hub_04(d) | Destroyed 7 combat bots 15810 | -6/Hub_04(d) | Reached level 23 15811 | -6/Hub_04(d) | Discovered exit to Factory (range 8) 15837 | -6/Hub_04(d) | Destroyed 8 combat bots 15839 | -6/Hub_04(d) | Spotted Lightning 15887 | -6/Hub_04(d) | Spotted Lightning 15913 | -6/Hub_04(d) | Destroyed Lightning 15940 | -6/Hub_04(d) | Spotted Lightning 15949 | -6/Hub_04(d) | Destroyed Lightning 15966 | -6/Hub_04(d) | Destroyed Lightning 16052 | -6/Hub_04(d) | High security lockdown imminent 16087 | -6/Hub_04(d) | Spotted B-75 Beast 16100 | -6/Hub_04(d) | Destroyed B-75 Beast 16124 | -6/Hub_04(d) | Spotted Lightning 16126 | -6/Hub_04(d) | Spotted Lightning 16132 | -6/Hub_04(d) | High security lockdown engaged 16158 | -6/Hub_04(d) | Spotted Lightning 16174 | -6/Hub_04(d) | Destroyed Lightning 16184 | -6/Hub_04(d) | Destroyed Lightning 16259 | -6/Hub_04(d) | Destroyed Lightning 16319 | -6/Hub_04(d) | Destroyed 9 combat bots 16341 | -6/Hub_04(d) | Entered Factory 16342 | -5/Factory | Core integrity fell below 50% 16641 | -5/Factory | First assault squad dispatched 17461 | -5/Factory | Reached level 24 17531 | -5/Factory | Identified exit to Upper Caves 17531 | -5/Factory | Central database locked down 17918 | -5/Factory | Discovered new exit (range 6) 17922 | -5/Factory | Identified exit to Factory 18060 | -5/Factory | High security lockdown imminent 18140 | -5/Factory | High security lockdown engaged 18343 | -5/Factory | Reached level 25 18400 | -5/Factory | Destroyed 28 combat bots 18500 | -5/Factory | Destroyed 13 combat bots 18585 | -5/Factory | Destroyed 14 combat bots 18696 | -5/Factory | Destroyed 15 combat bots 18727 | -5/Factory | Sterilization system engaged 18727 | -5/Factory | Non-combat units ordered to evacuate 18763 | -5/Factory | Destroyed 8 combat bots 18827 | -5/Factory | Combat units ordered to evacuate 18894 | -5/Factory | Destroyed 23 combat bots 18964 | -5/Factory | Entered Upper Caves 18977 | -5/Upper Caves | Attracted the attention of an 0b10 base 19004 | -5/Upper Caves | Attracted the attention of an 0b10 checkpoint 19056 | -5/Upper Caves | Learned location of Armory (-4) 19056 | -5/Upper Caves | Identified exit to Upper Caves 19056 | -5/Upper Caves | Learned Extension garrison access intel 19056 | -5/Upper Caves | Learned Armory emergency access door positions 19056 | -5/Upper Caves | Learned Armory garrison access intel 19198 | -5/Upper Caves | Learned Factory interactive machine intel 19217 | -5/Upper Caves | Acquired the password to a Derelict Tinkerer's latest research 19247 | -5/Upper Caves | Caught by Unaware searching for contraband prototypes 19255 | -5/Upper Caves | Build established: Scavenger-Gunner 19259 | -5/Upper Caves | Caught by Unaware searching for contraband prototypes 19397 | -5/Upper Caves | Entered another Upper Caves area 19408 | -5/Upper Caves | Attracted the attention of an 0b10 outpost 19438 | -5/Upper Caves | Reached level 26 19455 | -5/Upper Caves | Discovered exit to Factory (range 9) 19480 | -5/Upper Caves | Destroyed 10 combat bots 19493 | -5/Upper Caves | Learned Factory stockpile data 19497 | -5/Upper Caves | Learned Factory stockpile data 19508 | -5/Upper Caves | Attacked by a delusional Derelict stockpiling Unaware 19599 | -5/Upper Caves | Spotted B-75 Beast 19608 | -5/Upper Caves | Destroyed B-75 Beast 19745 | -5/Upper Caves | Discovered new exit (range 12) 19749 | -5/Upper Caves | Identified exit to Zhirov 19849 | -5/Upper Caves | Entered Zhirov 19849 | -5/Zhirov | Accompanied by 3 allies 19849 | -5/Zhirov | Discovered new exit (range 4) 19857 | -5/Zhirov | Met Zhirov 19865 | -5/Zhirov | Found Alien Artifact 19865 | -5/Zhirov | Identified Transdimensional Reconstructor 19865 | -5/Zhirov | Warped through subspace 19879 | -5/Zhirov | Found Alien Artifact 19879 | -5/Zhirov | Identified Integrated Dissipator 19879 | -5/Zhirov | Installed Integrated Dissipator, increased core heat dissipation (+20) 19907 | -5/Zhirov | Zhirov requested help retrieving the SGEMP Prototype 19918 | -5/Zhirov | Identified exit to Proximity Caves 19942 | -5/Zhirov | Entered Proximity Caves 19942 | -4/Proximity Caves | Accompanied by 3 allies 20062 | -4/Proximity Caves | Spotted B-86 Titan 20065 | -4/Proximity Caves | Destroyed B-86 Titan 20192 | -4/Proximity Caves | Discovered exit to Factory (range 10) 20263 | -4/Proximity Caves | Entered Factory 20263 | -4/Factory | Accompanied by 3 allies 20265 | -4/Factory | Loaded intel: 54 interactive machine locations 20449 | -4/Factory | Unchained authorized (6S-H0T) 20489 | -4/Factory | Exiles provided nearest exit location to -3/Research 20503 | -4/Factory | Assembled infested ambush trap array 20659 | -4/Factory | Build established: Scout 20708 | -4/Factory | Reached level 27 20718 | -4/Factory | Upgraded with Utility slot (x1) 20801 | -4/Factory | Fabricated W-44 Eye? 20957 | -4/Factory | Discovered new exit (range 15) 20963 | -4/Factory | Identified exit to Upper Caves 21001 | -4/Factory | Destroyed 6S-H0T 21046 | -4/Factory | Build established: Scavenger-Scout 21123 | -4/Factory | Core integrity fell below 50% 21136 | -4/Factory | Repaired Broken Particle Accelerator 21390 | -4/Factory | Cargo convoy interrupted 21390 | -4/Factory | Spotted Executioner 21421 | -4/Factory | Destroyed Executioner 21463 | -4/Factory | Found Prototype Device 21463 | -4/Factory | Identified Adv. Kinecellerator 21466 | -4/Factory | Found Prototype Processor 21466 | -4/Factory | Identified Exp. Core Analyzer 21482 | -4/Factory | Destroyed 11 combat bots 21513 | -4/Factory | First assault squad dispatched 21580 | -4/Factory | Discovered exit to Upper Caves (range 8) 21875 | -4/Factory | Found 6S-H0T's SS Cartridge 22130 | -4/Factory | High security lockdown imminent 22146 | -4/Factory | Reached level 28 22168 | -4/Factory | Destroyed 7 combat bots 22187 | -4/Factory | Discovered new exit (range 9) 22210 | -4/Factory | High security lockdown engaged 22249 | -4/Factory | Identified exit to Armory 22276 | -4/Factory | Destroyed 10 combat bots 22476 | -4/Factory | Destroyed 20 combat bots 22624 | -4/Factory | Sterilization system engaged 22624 | -4/Factory | Non-combat units ordered to evacuate 22684 | -4/Factory | Destroyed 30 combat bots 22724 | -4/Factory | Combat units ordered to evacuate 22730 | -4/Factory | Entered Armory 22802 | -4/Armory | High security lockdown imminent 22882 | -4/Armory | High security lockdown engaged 23034 | -4/Armory | Reached level 29 23080 | -4/Armory | Destroyed 27 combat bots 23134 | -4/Armory | Destroyed 7 combat bots 23327 | -4/Armory | Destroyed 23 combat bots 23350 | -4/Armory | Spotted B-86 Titan 23423 | -4/Armory | Discovered exit to Research (range 4) 23425 | -4/Armory | Destroyed 11 combat bots 23425 | -4/Armory | Entered Research 23426 | -3/Research | Core integrity fell below 50% 23431 | -3/Research | Discovered new exit (range 5) 23432 | -3/Research | Identified exit to Research 23490 | -3/Research | Spotted B-86 Titan 23491 | -3/Research | High security lockdown imminent 23491 | -3/Research | Destroyed B-86 Titan 23571 | -3/Research | High security lockdown engaged 23603 | -3/Research | Reached level 30 23625 | -3/Research | Revision forces began assault on 0b10 23638 | -3/Research | Destroyed 10 combat bots 23692 | -3/Research | Met up with Revision 17++ 23751 | -3/Research | Destroyed 14 combat bots 23803 | -3/Research | Lost 3 allies 23876 | -3/Research | Discovered new exit (range 6) 23906 | -3/Research | Lost 3 allies 23924 | -3/Research | Identified exit to Quarantine 23931 | -3/Research | Destroyed 11 combat bots 23931 | -3/Research | Entered Quarantine 23932 | -3/Quarantine | Maximum security lockdown engaged 24005 | -3/Quarantine | Met incapacitated Sigix Warrior 24005 | -3/Quarantine | Lockdown squad dispatched 24005 | -3/Quarantine | Reached level 31 24011 | -3/Quarantine | Upgraded with Utility slot (x1) 24013 | -3/Quarantine | Found Sigix Containment Pod 24066 | -3/Quarantine | Cryocooling Duct disabled 24081 | -3/Quarantine | Ambient heat levels rising (+20) 24081 | -3/Quarantine | Spotted Lightning 24081 | -3/Quarantine | Spotted Lightning 24081 | -3/Quarantine | Spotted Lightning 24087 | -3/Quarantine | Destroyed Lightning 24117 | -3/Quarantine | Destroyed Lightning 24146 | -3/Quarantine | Destroyed Lightning 24212 | -3/Quarantine | Spotted Investigator 24217 | -3/Quarantine | Scanned by Researcher 24224 | -3/Quarantine | Destroyed Investigator 24267 | -3/Quarantine | Destroyed 47 combat bots 24333 | -3/Quarantine | Spotted Striker 24357 | -3/Quarantine | Spotted Executioner 24362 | -3/Quarantine | Destroyed Striker 24388 | -3/Quarantine | Destroyed Executioner 24393 | -3/Quarantine | Spotted Executioner 24399 | -3/Quarantine | Destroyed Executioner 24438 | -3/Quarantine | Destroyed 9 combat bots 24673 | -3/Quarantine | Destroyed 29 combat bots 24673 | -3/Quarantine | Reached level 32 24823 | -3/Quarantine | Spotted Striker 24824 | -3/Quarantine | Destroyed Striker 24835 | -3/Quarantine | Spotted Striker 24836 | -3/Quarantine | Spotted Executioner 24841 | -3/Quarantine | Spotted Investigator 24849 | -3/Quarantine | Destroyed Investigator 24852 | -3/Quarantine | Destroyed Striker 24883 | -3/Quarantine | Sterilization system engaged 24883 | -3/Quarantine | Non-combat units ordered to evacuate 24888 | -3/Quarantine | Destroyed Executioner 24922 | -3/Quarantine | Destroyed 35 combat bots 24983 | -3/Quarantine | Combat units ordered to evacuate 25075 | -3/Quarantine | Destroyed 8 combat bots 25083 | -3/Quarantine | Discovered exit to Research (range 10) 25093 | -3/Quarantine | Found Alien Artifact 25116 | -3/Quarantine | Spotted Fortress 25130 | -3/Quarantine | Destroyed Fortress 25183 | -3/Quarantine | Ambient heat levels rising (+10) 25333 | -3/Quarantine | Ambient heat levels rising (+10) 25340 | -3/Quarantine | Discovered new exit (range 6) 25340 | -3/Quarantine | Discovered new exit (range 7) 25393 | -3/Quarantine | Entered Research 25394 | -2/Research | Identified exit to Testing 25491 | -2/Research | Found Prototype Processor 25491 | -2/Research | Identified Exp. Signal Interpreter 25606 | -2/Research | Unchained authorized (GL-D0S) 25643 | -2/Research | First assault squad dispatched 25646 | -2/Research | Exiles provided nearest exit location to -2/Testing 26007 | -2/Research | Found Prototype Hackware 26007 | -2/Research | Identified Exp. Hacking Suite 26262 | -2/Research | Discovered new exit (range 7) 26266 | -2/Research | Identified exit to Access 26289 | -2/Research | High security lockdown imminent 26303 | -2/Research | Reached level 33 26369 | -2/Research | High security lockdown engaged 26441 | -2/Research | Destroyed 11 combat bots 26443 | -2/Research | Spotted B-90 Cyclops 26453 | -2/Research | Spotted B-90 Cyclops 26456 | -2/Research | Destroyed B-90 Cyclops 26621 | -2/Research | Discovered exit to Access (range 5) 26648 | -2/Research | Destroyed 16 combat bots 26763 | -2/Research | Destroyed 7 combat bots 26882 | -2/Research | Spotted Striker 26899 | -2/Research | Core integrity fell below 50% 26903 | -2/Research | Destroyed Striker 26916 | -2/Research | Spotted Investigator 26926 | -2/Research | Core integrity fell below 20% 26929 | -2/Research | Reached level 34 26929 | -2/Research | Destroyed Investigator 26931 | -2/Research | Destroyed 19 combat bots 27096 | -2/Research | Spotted Striker 27097 | -2/Research | Spotted Striker 27107 | -2/Research | Destroyed Striker 27116 | -2/Research | Destroyed Striker 27141 | -2/Research | Spotted Executioner 27141 | -2/Research | Destroyed Executioner 27203 | -2/Research | Destroyed Striker 27245 | -2/Research | Sterilization system engaged 27245 | -2/Research | Non-combat units ordered to evacuate 27290 | -2/Research | System corruption reached 10% 27345 | -2/Research | Combat units ordered to evacuate 27370 | -2/Research | Destroyed B-90 Cyclops 27391 | -2/Research | Destroyed 76 combat bots 27458 | -2/Research | Found Exp. Signal Interpreter 27545 | -2/Research | Ambient heat levels rising (+10) 27553 | -2/Research | Found Prototype Energy Gun 27553 | -2/Research | Identified Piercelight Module 27654 | -2/Research | Discovered exit to Access (range 16) 27695 | -2/Research | Ambient heat levels rising (+10) 27845 | -2/Research | Ambient heat levels rising (+10) 27849 | -2/Research | Found Prototype Device 27849 | -2/Research | Identified Exp. ECM Suite 27917 | -2/Research | Spotted B-90 Cyclops 27953 | -2/Research | Entered Access 27954 | -1/Access | Core integrity fell below 50% 27954 | -1/Access | Core integrity fell below 20% 27955 | -1/Access | Reached level 35 28051 | -1/Access | High security lockdown imminent 28131 | -1/Access | High security lockdown engaged 28331 | -1/Access | Reached level 36 28360 | -1/Access | Spotted Striker 28363 | -1/Access | Spotted Executioner 28364 | -1/Access | Destroyed Striker 28370 | -1/Access | Destroyed Executioner 28439 | -1/Access | Destroyed 26 combat bots 28554 | -1/Access | Destroyed 7 combat bots 28651 | -1/Access | Destroyed 12 combat bots 28658 | -1/Access | Destroyed Executioner 28677 | -1/Access | Spotted Executioner 28715 | -1/Access | Spotted Executioner 28736 | -1/Access | Destroyed Executioner 28791 | -1/Access | Reached level 37 28796 | -1/Access | Spotted Executioner 28796 | -1/Access | Spotted Striker 28800 | -1/Access | Destroyed Striker 28822 | -1/Access | Destroyed Executioner 28823 | -1/Access | Destroyed Executioner 28859 | -1/Access | Destroyed 26 combat bots 28902 | -1/Access | Destroyed Executioner 28945 | -1/Access | Spotted Investigator 28945 | -1/Access | Spotted Striker 28947 | -1/Access | Destroyed Investigator 28954 | -1/Access | Destroyed Striker 28957 | -1/Access | Spotted Striker 28958 | -1/Access | Spotted Striker 28961 | -1/Access | Destroyed Striker 28989 | -1/Access | Destroyed 21 combat bots 29009 | -1/Access | Destroyed Striker 29067 | -1/Access | Sterilization system engaged 29141 | -1/Access | Spotted B-99 Colossus 29155 | -1/Access | Destroyed B-99 Colossus 29200 | -1/Access | Destroyed 7 combat bots 29224 | -1/Access | Destroyed Executioner 29250 | -1/Access | Spotted Striker 29250 | -1/Access | Spotted Executioner 29263 | -1/Access | Destroyed 8 combat bots 29274 | -1/Access | Destroyed Striker 29280 | -1/Access | Destroyed Executioner 29290 | -1/Access | Found Adv. Kinecellerator 29367 | -1/Access | Ambient heat levels rising (+10) 29393 | -1/Access | Spotted B-99 Colossus 29393 | -1/Access | Spotted B-99 Colossus 29395 | -1/Access | Discovered new exit (range 3) 29396 | -1/Access | Identified exit to Command 29431 | -1/Access | Destroyed B-99 Colossus 29445 | -1/Access | Destroyed B-99 Colossus 29475 | -1/Access | Entered Command 29529 | -1/Command | High security lockdown imminent 29553 | -1/Command | Disengaged cave seal 29553 | -1/Command | Wild derelicts emerged from the dark tunnel 29567 | -1/Command | Phase Generator disabled 29573 | -1/Command | System corruption reached 10% 29579 | -1/Command | Reached level 38 29609 | -1/Command | High security lockdown engaged 29618 | -1/Command | Spotted B-99 Colossus 29631 | -1/Command | Destroyed B-99 Colossus 29837 | -1/Command | Spotted Striker 29838 | -1/Command | Spotted Striker 29847 | -1/Command | Destroyed Striker 29853 | -1/Command | Spotted Investigator 29864 | -1/Command | Destroyed Striker 29887 | -1/Command | Destroyed Investigator 29945 | -1/Command | Destroyed 17 combat bots 29968 | -1/Command | Found Prototype Device 29968 | -1/Command | Identified Adv. EM Shield 30104 | -1/Command | Spotted Executioner 30105 | -1/Command | Destroyed Executioner 30185 | -1/Command | Destroyed 14 combat bots 30398 | -1/Command | Spotted Striker 30398 | -1/Command | Spotted Executioner 30422 | -1/Command | Destroyed Executioner 30430 | -1/Command | Destroyed Striker 30464 | -1/Command | Destroyed 7 combat bots 30480 | -1/Command | Spotted Executioner 30480 | -1/Command | Spotted Striker 30485 | -1/Command | Destroyed Striker 30514 | -1/Command | Destroyed Executioner 30549 | -1/Command | Destroyed 13 combat bots 30597 | -1/Command | Spotted Executioner 30597 | -1/Command | Spotted Striker 30599 | -1/Command | Spotted Executioner 30601 | -1/Command | Destroyed Executioner 30612 | -1/Command | Spotted Striker 30613 | -1/Command | Spotted Executioner 30621 | -1/Command | Spotted Executioner 30635 | -1/Command | Destroyed Striker 30642 | -1/Command | Destroyed Executioner 30668 | -1/Command | Destroyed 14 combat bots 30709 | -1/Command | Destroyed Executioner 30709 | -1/Command | Spotted Striker 30716 | -1/Command | Destroyed Striker 30741 | -1/Command | Spotted Striker 30742 | -1/Command | Destroyed Striker 30747 | -1/Command | Spotted Investigator 30750 | -1/Command | Destroyed Striker 30760 | -1/Command | Destroyed Executioner 30764 | -1/Command | Destroyed Investigator 30765 | -1/Command | Spotted Executioner 30766 | -1/Command | Spotted Executioner 30769 | -1/Command | Destroyed Executioner 30777 | -1/Command | Spotted Executioner 30778 | -1/Command | Spotted Executioner 30811 | -1/Command | Destroyed Striker 30833 | -1/Command | Destroyed Executioner 30863 | -1/Command | Destroyed Executioner 30868 | -1/Command | Destroyed Executioner 30889 | -1/Command | Destroyed 49 combat bots 30905 | -1/Command | Spotted Striker 30913 | -1/Command | Destroyed Striker 30955 | -1/Command | Destroyed Executioner 30976 | -1/Command | Destroyed 8 combat bots 31127 | -1/Command | Spotted Combat Programmer 31127 | -1/Command | Spotted Combat Programmer 31130 | -1/Command | Destroyed Combat Programmer 31139 | -1/Command | Destroyed Combat Programmer 31156 | -1/Command | Spotted M Guard 31156 | -1/Command | Spotted M Guard 31196 | -1/Command | Destroyed M Guard 31212 | -1/Command | Destroyed M Guard 31212 | -1/Command | All MAIN.C guards destroyed 31522 | -1/Command | 0b10 Conduit disabled 31522 | -1/Command | Reached level 39 31536 | -1/Command | Met MAIN.C 31640 | -1/Command | MAIN.C activated Command garrisons 31664 | -1/Command | Destroyed MAIN.C Shell 31701 | -1/Command | System corruption reached 30% 31702 | -1/Command | Destroyed by P-80 Master with Gamma Rifle Last Messages --------------- 31694_ MAIN.C knocked back. 31694_ Knocked back. 31695_ Penetrated by Slug. 31696_ Destroyed Prototype Device. 31697_ P-80 Master knocked back. 31697_ P-80 Master system corrupted by crushing effect. 31697_ P-80 Master resets P-80 Master, system corruption cleaned. 31698_ Slug penetrates Reinforced Barrier. 31698_ Penetrated by Slug. 31698_ Destroyed Prototype Hover Unit. 31699_ Destroyed Adv. Point Defense System. 31699_ Door malfunctions. 31700_ IYS#IVTMIGJI9O5RK|CB